Workbook

Sheet Půjčovna ALEA
A1: ALEA Divers - centrum potápění
A2: Kamýcká 10/131, Praha 6 - Suchdol, CZ
A3: www.ALEADIVERS.cz; +420 602 522 355
A5: Ceník platný od 1.9.2023
A7: Ceník půjčovny potápěčské techniky
A9: Potápěči s certifikátem | J9: =$C$13*J11/J13 -> 1.2 | M9: =$C$13*M11/M13 -> 1.333333333
D10: 0.17 | E10: 0.25
A11: Položka | B11: Kauce | C11: 1-3 dny | D11: 4-6 dnů | E11: 7 a více dnů | G11: 1 | H11: 2 | I11: 3 | J11: 4 | K11: 5 | L11: 6 | M11: 7 | N11: 8 | O11: 9
A12: Lahev □15L, □12L, □10L, □7L, □5L | B12: 8000 | C12: 120 | D12: =CEILING(C12-C12*$D$10,1) -> 100 | E12: =CEILING(C12-C12*$E$10,1) -> 90
A13: BCD Seaquest SPECTRUM 1 | B13: 8000 | C13: 120 | D13: 100 | E13: 90 | G13: =$C13*G$11 -> 120 | H13: 240 | I13: 360 | J13: =$D13*J$11 -> 400 | K13: 500 | L13: 600 | M13: =$E13*M$11 -> 630 | N13: 720 | O13: 810
A14: BCD □Technisub Hexagon, □Seaquest ZUMA, □BCD s integr. Zátěží | B14: 12000 | C14: 160 | D14: 133 | E14: 120 | G14: 160 | H14: 320 | I14: 480 | J14: 532 | K14: 665 | L14: 798 | M14: 840 | N14: 960 | O14: 1080
A15: BCD □Tecline Peanut / □Fly Ultra - vč. Nože a Kapes na zátěž | B15: 19000 | C15: 200 | D15: 166 | E15: 150 | G15: 200 | H15: 400 | I15: 600 | J15: 664 | K15: 830 | L15: 996 | M15: 1050 | N15: 1200 | O15: 1350
A16: OBLEK □Scubapro,□Seacsub,□Aqualung 5mm (□short+□fullsuit) - za ks | B16: 6000 | C16: 100 | D16: 83 | E16: 75 | G16: 100 | H16: 200 | I16: 300 | J16: 332 | K16: 415 | L16: 498 | M16: 525 | N16: 600 | O16: 675
A17: AUTOMATIKA □ Apeks MTX-RC, □ Tecline V2 ICE (1.,2.stupeň,octo,tlak) | B17: 30150 | C17: 290 | D17: 241 | E17: 218 | G17: 290 | H17: 580 | I17: 870 | J17: 964 | K17: 1205 | L17: 1446 | M17: 1526 | N17: 1744 | O17: 1962
A18: AUTOMATIKA □Atomic Z2,□Aqualung LEGEND (1.,2.stupeň,octo,tlak) | B18: 21100 | C18: 210 | D18: 175 | E18: 158 | G18: 210 | H18: 420 | I18: 630 | J18: 700 | K18: 875 | L18: 1050 | M18: 1106 | N18: 1264 | O18: 1422
A19: AUTOMATIKA □ Apeks ATX40 (1.,2.stupeň,octo,tlak) | B19: 14000 | C19: 180 | D19: 150 | E19: 135 | G19: 180 | H19: 360 | I19: 540 | J19: 600 | K19: 750 | L19: 900 | M19: 945 | N19: 1080 | O19: 1215
A20: SVĚTLO - □FINNLIGHT,□D520,□Beta50W,□XENON - aku,□nabíječka | B20: 9500 | C20: 150 | D20: 125 | E20: 113 | G20: 150 | H20: 300 | I20: 450 | J20: 500 | K20: 625 | L20: 750 | M20: 791 | N20: 904 | O20: 1017
A21: Zátěžový opasek | B21: 400 | C21: 10 | D21: 9 | E21: 8 | G21: 10 | H21: 20 | I21: 30 | J21: 36 | K21: 45 | L21: 54 | M21: 56 | N21: 64 | O21: 72
A22: ZÁTĚŽ - Olověné závaží - ks kostek | B22: 200 | C22: 8 | D22: 7 | E22: 6 | G22: 8 | H22: 16 | I22: 24 | J22: 28 | K22: 35 | L22: 42 | M22: 42 | N22: 48 | O22: 54
A23: Počítač Suunto ZOOP NOVO, Aqualung i330+USB nabíječka, VYPER | B23: 9000 | C23: 130 | D23: 108 | E23: 98 | G23: 130 | H23: 260 | I23: 390 | J23: 432 | K23: 540 | L23: 648 | M23: 686 | N23: 784 | O23: 882
A24: □Kompas SUUNTO SK7, □Hloubkoměr (i v konzoli) | B24: 2000 | C24: 50 | D24: 42 | E24: 38 | G24: 50 | H24: 100 | I24: 150 | J24: 168 | K24: 210 | L24: 252 | M24: 266 | N24: 304 | O24: 342
A25: Neoprenové botky BEUCHAT, BARE | B25: 1500 | C25: 50 | D25: 42 | E25: 38 | G25: 50 | H25: 100 | I25: 150 | J25: 168 | K25: 210 | L25: 252 | M25: 266 | N25: 304 | O25: 342
A26: Ploutve ATOMIC SPLITFINS páskové | B26: 5000 | C26: 80 | D26: 67 | E26: 60 | G26: 80 | H26: 160 | I26: 240 | J26: 268 | K26: 335 | L26: 402 | M26: 420 | N26: 480 | O26: 540
A27: □Plouvte bazénové BEUCHAT, TECHNISUB, □páskové TECHNISUB | B27: 1000 | C27: 50 | D27: 42 | E27: 38 | G27: 50 | H27: 100 | I27: 150 | J27: 168 | K27: 210 | L27: 252 | M27: 266 | N27: 304 | O27: 342
A28: MASKA - Silikonová BARE, TECHNISUB… | B28: 1500 | C28: 50 | D28: 42 | E28: 38 | G28: 50 | H28: 100 | I28: 150 | J28: 168 | K28: 210 | L28: 252 | M28: 266 | N28: 304 | O28: 342
A29: □Šnorchl, □ostatní rukavice, □ostatní botky | B29: 500 | C29: 20 | D29: 17 | E29: 15 | G29: 20 | H29: 40 | I29: 60 | J29: 68 | K29: 85 | L29: 102 | M29: 105 | N29: 120 | O29: 135
A30: RUKAVICE - BARE Kevlar 5mm | B30: 1500 | C30: 35 | D30: 30 | E30: 27 | G30: 35 | H30: 70 | I30: 105 | J30: 120 | K30: 150 | L30: 180 | M30: 189 | N30: 216 | O30: 243
A31: □Nůž, □Redukce DIN/INT, □Deco boje | B31: 1500 | C31: 20 | D31: 17 | E31: 15 | G31: 20 | H31: 40 | I31: 60 | J31: 68 | K31: 85 | L31: 102 | M31: 105 | N31: 120 | O31: 135
A32: Bedna na výstroj - AKCE - půjčovné ZDARMA | B32: 500 | C32: 0 | D32: 0 | E32: 0 | G32: 0 | H32: 0 | I32: 0 | J32: 0 | K32: 0 | L32: 0 | M32: 0 | N32: 0 | O32: 0
A33: Plnění lahví 1L (% EANx) | C33: 12
A35: Všechny ceny jsou v Kč a za jeden den půjčení. Nepočítáme den zapůjčení (mimo půjček na 1 den), počítají se dny do dne vrácení výstroje včetně.
A36: Doprava výstroje na námi pořádané akce a kurzy (tam a zpět do půjčovny) | E36: 1 Kč / Km
A38: Přátelé, studenti ALEA Divers a členové Vodního klubu | D38: sleva | E38: 0.2
A40: Položka | B40: Kauce | C40: 1-3 dny | D40: 4-6 dnů | E40: 7 a více dnů
A41: =A12 -> Lahev □15L, □12L, □10L, □7L, □5L | B41: 0 | C41: =C12-C12*$E$38 -> 96 | D41: 80 | E41: 72
A42: BCD Seaquest SPECTRUM 1 | B42: 0 | C42: 96 | D42: 80 | E42: 72
A43: BCD □Technisub Hexagon, □Seaquest ZUMA, □BCD s integr. Zátěží | B43: 0 | C43: 128 | D43: 106.4 | E43: 96
A44: BCD □Tecline Peanut / □Fly Ultra - vč. Nože a Kapes na zátěž | B44: 0 | C44: 160 | D44: 132.8 | E44: 120
A45: OBLEK □Scubapro,□Seacsub,□Aqualung 5mm (□short+□fullsuit) - za ks | B45: 0 | C45: 80 | D45: 66.4 | E45: 60
A46: AUTOMATIKA □ Apeks MTX-RC, □ Tecline V2 ICE (1.,2.stupeň,octo,tlak) | B46: 0 | C46: 232 | D46: 192.8 | E46: 174.4
A47: AUTOMATIKA □Atomic Z2,□Aqualung LEGEND (1.,2.stupeň,octo,tlak) | B47: 0 | C47: 168 | D47: 140 | E47: 126.4
A48: AUTOMATIKA □ Apeks ATX40 (1.,2.stupeň,octo,tlak) | B48: 0 | C48: 144 | D48: 120 | E48: 108
A49: SVĚTLO - □FINNLIGHT,□D520,□Beta50W,□XENON - aku,□nabíječka | B49: 0 | C49: 120 | D49: 100 | E49: 90.4
A50: Zátěžový opasek | B50: 0 | C50: 8 | D50: 7.2 | E50: 6.4
A51: ZÁTĚŽ - Olověné závaží - ks kostek | B51: 0 | C51: 6.4 | D51: 5.6 | E51: 4.8
A52: Počítač Suunto ZOOP NOVO, Aqualung i330+USB nabíječka, VYPER | B52: 0 | C52: 104 | D52: 86.4 | E52: 78.4
A53: □Kompas SUUNTO SK7, □Hloubkoměr (i v konzoli) | B53: 0 | C53: 40 | D53: 33.6 | E53: 30.4
A54: Neoprenové botky BEUCHAT, BARE | B54: 0 | C54: 40 | D54: 33.6 | E54: 30.4
A55: Ploutve ATOMIC SPLITFINS páskové | B55: 0 | C55: 64 | D55: 53.6 | E55: 48
A56: □Plouvte bazénové BEUCHAT, TECHNISUB, □páskové TECHNISUB | B56: 0 | C56: 40 | D56: 33.6 | E56: 30.4
A57: MASKA - Silikonová BARE, TECHNISUB… | B57: 0 | C57: 40 | D57: 33.6 | E57: 30.4
A58: □Šnorchl, □ostatní rukavice, □ostatní botky | B58: 0 | C58: 16 | D58: 13.6 | E58: 12
A59: RUKAVICE - BARE Kevlar 5mm | B59: 0 | C59: 28 | D59: 24 | E59: 21.6
A60: □Nůž, □Redukce DIN/INT, □Deco boje | B60: 0 | C60: 16 | D60: 13.6 | E60: 12
A61: Bedna na výstroj - AKCE - půjčovné ZDARMA | B61: 0 | C61: 0 | D61: 0 | E61: 0
A62: =A33 -> Plnění lahví 1L (% EANx) | C62: =C33-C33*$E$38 -> 9.6
A64: alea

Sheet formulář půjčovna
A1: FORM VERZE 09/2016
A2: ALEA Divers - centrum potápění
A3: Kamýcká 10/131, Praha 6 - Suchdol, CZ
A4: +420 602 522 355, info@aleadivers.cz, http://www.aleadivers.cz
A6: Seznam zapůjčeného materiálu
A8: Jméno: | F8: Rodné číslo:
A9: Adresa: | F9: Č.OP / Pasu:
A10: Telefon: | F10: E-mail:
A11: Potápěčská kvalifikace: | F11: Místo potápění:
A13: Půjčovné celkem: | B13: =J47 -> 0
A14: Záloha: | B14: =SUM(I22:I35) -> 0 | C14: FALSE
C15: FALSE
A16: Přijal:
A17: Datum: | C17: Podpis: | J17: FALSE
A19: Materiál | B19: TRUE | D19: Poznámky | E19: Počet ks | F19: Pořizovací cena 1 ks | G19: Půjčovné den/ks | I19: Záloha | J19: Celkem
B20: ='Půjčovna ALEA'!A5 -> Ceník platný od 1.9.2023 | G20: původní | H20: po slevě
A21: =IF($B$19,'Půjčovna ALEA'!A12,IF(E21=0,"",'Půjčovna ALEA'!A12)) -> Lahev □15L, □12L, □10L, □7L, □5L | F21: =IF($B$19,'Půjčovna ALEA'!B12,IF(E21=0,"",'Půjčovna ALEA'!B12)) -> 8000 | G21: =IF($B$19,'Půjčovna ALEA'!C12,IF(E21=0,"",'Půjčovna ALEA'!C12)) -> 120 | H21: =IF($B$19,IF($J$17,IF($C$53<4,'Půjčovna ALEA'!C12,IF($C$53<7,'Půjčovna ALEA'!D12,IF($C$53>6,'Půjčovna ALEA'!E12)))*(1-'Půjčovna ALEA'!$E$38),IF($C$53<4,'Půjčovna ALEA'!C12,IF($C$53<7,'Půjčovna ALEA'!D12,IF($C$53>6,'Půjčovna ALEA'!E12)))),IF(E21>0,IF($J$17,IF($C$53<4,'Půjčovna ALEA'!C12,IF($C$53<7,'Půjčovna ALEA'!D12,IF($C$53>6,'Půjčovna ALEA'!E12)))*(1-'Půjčovna ALEA'!$E$38),IF($C$53<4,'Půjčovna ALEA'!C12,IF($C$53<7,'Půjčovna ALEA'!D12,IF($C$53>6,'Půjčovna ALEA'!E12)))),0)) -> 120 | I21: =IF($C$14,IF(E21>0,'Půjčovna ALEA'!B12*E21,),IF($C$15,IF(E21>0,'Půjčovna ALEA'!B12/2*E21,),)) -> 0 | J21: =I21+H21*E21*$C$53 -> 0
A22: =IF($B$19,'Půjčovna ALEA'!A13,IF(E22=0,"",'Půjčovna ALEA'!A13)) -> BCD Seaquest SPECTRUM 1 | F22: =IF($B$19,'Půjčovna ALEA'!B13,IF(E22=0,"",'Půjčovna ALEA'!B13)) -> 8000 | G22: =IF($B$19,'Půjčovna ALEA'!C13,IF(E22=0,"",'Půjčovna ALEA'!C13)) -> 120 | H22: =IF($B$19,IF($J$17,IF($C$53<4,'Půjčovna ALEA'!C13,IF($C$53<7,'Půjčovna ALEA'!D13,IF($C$53>6,'Půjčovna ALEA'!E13)))*(1-'Půjčovna ALEA'!$E$38),IF($C$53<4,'Půjčovna ALEA'!C13,IF($C$53<7,'Půjčovna ALEA'!D13,IF($C$53>6,'Půjčovna ALEA'!E13)))),IF(E22>0,IF($J$17,IF($C$53<4,'Půjčovna ALEA'!C13,IF($C$53<7,'Půjčovna ALEA'!D13,IF($C$53>6,'Půjčovna ALEA'!E13)))*(1-'Půjčovna ALEA'!$E$38),IF($C$53<4,'Půjčovna ALEA'!C13,IF($C$53<7,'Půjčovna ALEA'!D13,IF($C$53>6,'Půjčovna ALEA'!E13)))),0)) -> 120 | I22: =IF($C$14,IF(E22>0,'Půjčovna ALEA'!B13*E22,),IF($C$15,IF(E22>0,'Půjčovna ALEA'!B13/2*E22,),)) -> 0 | J22: =I22+H22*E22*$C$53 -> 0
A23: =IF($B$19,'Půjčovna ALEA'!A14,IF(E23=0,"",'Půjčovna ALEA'!A14)) -> BCD □Technisub Hexagon, □Seaquest ZUMA, □BCD s integr. Zátěží | F23: =IF($B$19,'Půjčovna ALEA'!B14,IF(E23=0,"",'Půjčovna ALEA'!B14)) -> 12000 | G23: =IF($B$19,'Půjčovna ALEA'!C14,IF(E23=0,"",'Půjčovna ALEA'!C14)) -> 160 | H23: =IF($B$19,IF($J$17,IF($C$53<4,'Půjčovna ALEA'!C14,IF($C$53<7,'Půjčovna ALEA'!D14,IF($C$53>6,'Půjčovna ALEA'!E14)))*(1-'Půjčovna ALEA'!$E$38),IF($C$53<4,'Půjčovna ALEA'!C14,IF($C$53<7,'Půjčovna ALEA'!D14,IF($C$53>6,'Půjčovna ALEA'!E14)))),IF(E23>0,IF($J$17,IF($C$53<4,'Půjčovna ALEA'!C14,IF($C$53<7,'Půjčovna ALEA'!D14,IF($C$53>6,'Půjčovna ALEA'!E14)))*(1-'Půjčovna ALEA'!$E$38),IF($C$53<4,'Půjčovna ALEA'!C14,IF($C$53<7,'Půjčovna ALEA'!D14,IF($C$53>6,'Půjčovna ALEA'!E14)))),0)) -> 160 | I23: =IF($C$14,IF(E23>0,'Půjčovna ALEA'!B14*E23,),IF($C$15,IF(E23>0,'Půjčovna ALEA'!B14/2*E23,),)) -> 0 | J23: 0
A24: =IF($B$19,'Půjčovna ALEA'!A15,IF(E24=0,"",'Půjčovna ALEA'!A15)) -> BCD □Tecline Peanut / □Fly Ultra - vč. Nože a Kapes na zátěž | F24: =IF($B$19,'Půjčovna ALEA'!B15,IF(E24=0,"",'Půjčovna ALEA'!B15)) -> 19000 | G24: =IF($B$19,'Půjčovna ALEA'!C15,IF(E24=0,"",'Půjčovna ALEA'!C15)) -> 200 | H24: =IF($B$19,IF($J$17,IF($C$53<4,'Půjčovna ALEA'!C15,IF($C$53<7,'Půjčovna ALEA'!D15,IF($C$53>6,'Půjčovna ALEA'!E15)))*(1-'Půjčovna ALEA'!$E$38),IF($C$53<4,'Půjčovna ALEA'!C15,IF($C$53<7,'Půjčovna ALEA'!D15,IF($C$53>6,'Půjčovna ALEA'!E15)))),IF(E24>0,IF($J$17,IF($C$53<4,'Půjčovna ALEA'!C15,IF($C$53<7,'Půjčovna ALEA'!D15,IF($C$53>6,'Půjčovna ALEA'!E15)))*(1-'Půjčovna ALEA'!$E$38),IF($C$53<4,'Půjčovna ALEA'!C15,IF($C$53<7,'Půjčovna ALEA'!D15,IF($C$53>6,'Půjčovna ALEA'!E15)))),0)) -> 200 | I24: =IF($C$14,IF(E24>0,'Půjčovna ALEA'!B15*E24,),IF($C$15,IF(E24>0,'Půjčovna ALEA'!B15/2*E24,),)) -> 0 | J24: 0
A25: =IF($B$19,'Půjčovna ALEA'!A16,IF(E25=0,"",'Půjčovna ALEA'!A16)) -> OBLEK □Scubapro,□Seacsub,□Aqualung 5mm (□short+□fullsuit) - za ks | F25: =IF($B$19,'Půjčovna ALEA'!B16,IF(E25=0,"",'Půjčovna ALEA'!B16)) -> 6000 | G25: =IF($B$19,'Půjčovna ALEA'!C16,IF(E25=0,"",'Půjčovna ALEA'!C16)) -> 100 | H25: =IF($B$19,IF($J$17,IF($C$53<4,'Půjčovna ALEA'!C16,IF($C$53<7,'Půjčovna ALEA'!D16,IF($C$53>6,'Půjčovna ALEA'!E16)))*(1-'Půjčovna ALEA'!$E$38),IF($C$53<4,'Půjčovna ALEA'!C16,IF($C$53<7,'Půjčovna ALEA'!D16,IF($C$53>6,'Půjčovna ALEA'!E16)))),IF(E25>0,IF($J$17,IF($C$53<4,'Půjčovna ALEA'!C16,IF($C$53<7,'Půjčovna ALEA'!D16,IF($C$53>6,'Půjčovna ALEA'!E16)))*(1-'Půjčovna ALEA'!$E$38),IF($C$53<4,'Půjčovna ALEA'!C16,IF($C$53<7,'Půjčovna ALEA'!D16,IF($C$53>6,'Půjčovna ALEA'!E16)))),0)) -> 100 | I25: =IF($C$14,IF(E25>0,'Půjčovna ALEA'!B16*E25,),IF($C$15,IF(E25>0,'Půjčovna ALEA'!B16/2*E25,),)) -> 0 | J25: 0
A26: =IF($B$19,'Půjčovna ALEA'!A17,IF(E26=0,"",'Půjčovna ALEA'!A17)) -> AUTOMATIKA □ Apeks MTX-RC, □ Tecline V2 ICE (1.,2.stupeň,octo,tlak) | F26: =IF($B$19,'Půjčovna ALEA'!B17,IF(E26=0,"",'Půjčovna ALEA'!B17)) -> 30150 | G26: =IF($B$19,'Půjčovna ALEA'!C17,IF(E26=0,"",'Půjčovna ALEA'!C17)) -> 290 | H26: =IF($B$19,IF($J$17,IF($C$53<4,'Půjčovna ALEA'!C17,IF($C$53<7,'Půjčovna ALEA'!D17,IF($C$53>6,'Půjčovna ALEA'!E17)))*(1-'Půjčovna ALEA'!$E$38),IF($C$53<4,'Půjčovna ALEA'!C17,IF($C$53<7,'Půjčovna ALEA'!D17,IF($C$53>6,'Půjčovna ALEA'!E17)))),IF(E26>0,IF($J$17,IF($C$53<4,'Půjčovna ALEA'!C17,IF($C$53<7,'Půjčovna ALEA'!D17,IF($C$53>6,'Půjčovna ALEA'!E17)))*(1-'Půjčovna ALEA'!$E$38),IF($C$53<4,'Půjčovna ALEA'!C17,IF($C$53<7,'Půjčovna ALEA'!D17,IF($C$53>6,'Půjčovna ALEA'!E17)))),0)) -> 290 | I26: =IF($C$14,IF(E26>0,'Půjčovna ALEA'!B17*E26,),IF($C$15,IF(E26>0,'Půjčovna ALEA'!B17/2*E26,),)) -> 0 | J26: 0
A27: =IF($B$19,'Půjčovna ALEA'!A18,IF(E27=0,"",'Půjčovna ALEA'!A18)) -> AUTOMATIKA □Atomic Z2,□Aqualung LEGEND (1.,2.stupeň,octo,tlak) | F27: =IF($B$19,'Půjčovna ALEA'!B18,IF(E27=0,"",'Půjčovna ALEA'!B18)) -> 21100 | G27: =IF($B$19,'Půjčovna ALEA'!C18,IF(E27=0,"",'Půjčovna ALEA'!C18)) -> 210 | H27: =IF($B$19,IF($J$17,IF($C$53<4,'Půjčovna ALEA'!C18,IF($C$53<7,'Půjčovna ALEA'!D18,IF($C$53>6,'Půjčovna ALEA'!E18)))*(1-'Půjčovna ALEA'!$E$38),IF($C$53<4,'Půjčovna ALEA'!C18,IF($C$53<7,'Půjčovna ALEA'!D18,IF($C$53>6,'Půjčovna ALEA'!E18)))),IF(E27>0,IF($J$17,IF($C$53<4,'Půjčovna ALEA'!C18,IF($C$53<7,'Půjčovna ALEA'!D18,IF($C$53>6,'Půjčovna ALEA'!E18)))*(1-'Půjčovna ALEA'!$E$38),IF($C$53<4,'Půjčovna ALEA'!C18,IF($C$53<7,'Půjčovna ALEA'!D18,IF($C$53>6,'Půjčovna ALEA'!E18)))),0)) -> 210 | I27: =IF($C$14,IF(E27>0,'Půjčovna ALEA'!B18*E27,),IF($C$15,IF(E27>0,'Půjčovna ALEA'!B18/2*E27,),)) -> 0 | J27: 0
A28: =IF($B$19,'Půjčovna ALEA'!A19,IF(E28=0,"",'Půjčovna ALEA'!A19)) -> AUTOMATIKA □ Apeks ATX40 (1.,2.stupeň,octo,tlak) | F28: =IF($B$19,'Půjčovna ALEA'!B19,IF(E28=0,"",'Půjčovna ALEA'!B19)) -> 14000 | G28: =IF($B$19,'Půjčovna ALEA'!C19,IF(E28=0,"",'Půjčovna ALEA'!C19)) -> 180 | H28: =IF($B$19,IF($J$17,IF($C$53<4,'Půjčovna ALEA'!C19,IF($C$53<7,'Půjčovna ALEA'!D19,IF($C$53>6,'Půjčovna ALEA'!E19)))*(1-'Půjčovna ALEA'!$E$38),IF($C$53<4,'Půjčovna ALEA'!C19,IF($C$53<7,'Půjčovna ALEA'!D19,IF($C$53>6,'Půjčovna ALEA'!E19)))),IF(E28>0,IF($J$17,IF($C$53<4,'Půjčovna ALEA'!C19,IF($C$53<7,'Půjčovna ALEA'!D19,IF($C$53>6,'Půjčovna ALEA'!E19)))*(1-'Půjčovna ALEA'!$E$38),IF($C$53<4,'Půjčovna ALEA'!C19,IF($C$53<7,'Půjčovna ALEA'!D19,IF($C$53>6,'Půjčovna ALEA'!E19)))),0)) -> 180 | I28: =IF($C$14,IF(E28>0,'Půjčovna ALEA'!B19*E28,),IF($C$15,IF(E28>0,'Půjčovna ALEA'!B19/2*E28,),)) -> 0 | J28: 0
A29: =IF($B$19,'Půjčovna ALEA'!A20,IF(E29=0,"",'Půjčovna ALEA'!A20)) -> SVĚTLO - □FINNLIGHT,□D520,□Beta50W,□XENON - aku,□nabíječka | F29: =IF($B$19,'Půjčovna ALEA'!B20,IF(E29=0,"",'Půjčovna ALEA'!B20)) -> 9500 | G29: =IF($B$19,'Půjčovna ALEA'!C20,IF(E29=0,"",'Půjčovna ALEA'!C20)) -> 150 | H29: =IF($B$19,IF($J$17,IF($C$53<4,'Půjčovna ALEA'!C20,IF($C$53<7,'Půjčovna ALEA'!D20,IF($C$53>6,'Půjčovna ALEA'!E20)))*(1-'Půjčovna ALEA'!$E$38),IF($C$53<4,'Půjčovna ALEA'!C20,IF($C$53<7,'Půjčovna ALEA'!D20,IF($C$53>6,'Půjčovna ALEA'!E20)))),IF(E29>0,IF($J$17,IF($C$53<4,'Půjčovna ALEA'!C20,IF($C$53<7,'Půjčovna ALEA'!D20,IF($C$53>6,'Půjčovna ALEA'!E20)))*(1-'Půjčovna ALEA'!$E$38),IF($C$53<4,'Půjčovna ALEA'!C20,IF($C$53<7,'Půjčovna ALEA'!D20,IF($C$53>6,'Půjčovna ALEA'!E20)))),0)) -> 150 | I29: =IF($C$14,IF(E29>0,'Půjčovna ALEA'!B20*E29,),IF($C$15,IF(E29>0,'Půjčovna ALEA'!B20/2*E29,),)) -> 0 | J29: 0
A30: =IF($B$19,'Půjčovna ALEA'!A21,IF(E30=0,"",'Půjčovna ALEA'!A21)) -> Zátěžový opasek | F30: =IF($B$19,'Půjčovna ALEA'!B21,IF(E30=0,"",'Půjčovna ALEA'!B21)) -> 400 | G30: =IF($B$19,'Půjčovna ALEA'!C21,IF(E30=0,"",'Půjčovna ALEA'!C21)) -> 10 | H30: =IF($B$19,IF($J$17,IF($C$53<4,'Půjčovna ALEA'!C21,IF($C$53<7,'Půjčovna ALEA'!D21,IF($C$53>6,'Půjčovna ALEA'!E21)))*(1-'Půjčovna ALEA'!$E$38),IF($C$53<4,'Půjčovna ALEA'!C21,IF($C$53<7,'Půjčovna ALEA'!D21,IF($C$53>6,'Půjčovna ALEA'!E21)))),IF(E30>0,IF($J$17,IF($C$53<4,'Půjčovna ALEA'!C21,IF($C$53<7,'Půjčovna ALEA'!D21,IF($C$53>6,'Půjčovna ALEA'!E21)))*(1-'Půjčovna ALEA'!$E$38),IF($C$53<4,'Půjčovna ALEA'!C21,IF($C$53<7,'Půjčovna ALEA'!D21,IF($C$53>6,'Půjčovna ALEA'!E21)))),0)) -> 10 | I30: =IF($C$14,IF(E30>0,'Půjčovna ALEA'!B21*E30,),IF($C$15,IF(E30>0,'Půjčovna ALEA'!B21/2*E30,),)) -> 0 | J30: 0
A31: =IF($B$19,'Půjčovna ALEA'!A22,IF(E31=0,"",'Půjčovna ALEA'!A22)) -> ZÁTĚŽ - Olověné závaží - ks kostek | F31: =IF($B$19,'Půjčovna ALEA'!B22,IF(E31=0,"",'Půjčovna ALEA'!B22)) -> 200 | G31: =IF($B$19,'Půjčovna ALEA'!C22,IF(E31=0,"",'Půjčovna ALEA'!C22)) -> 8 | H31: =IF($B$19,IF($J$17,IF($C$53<4,'Půjčovna ALEA'!C22,IF($C$53<7,'Půjčovna ALEA'!D22,IF($C$53>6,'Půjčovna ALEA'!E22)))*(1-'Půjčovna ALEA'!$E$38),IF($C$53<4,'Půjčovna ALEA'!C22,IF($C$53<7,'Půjčovna ALEA'!D22,IF($C$53>6,'Půjčovna ALEA'!E22)))),IF(E31>0,IF($J$17,IF($C$53<4,'Půjčovna ALEA'!C22,IF($C$53<7,'Půjčovna ALEA'!D22,IF($C$53>6,'Půjčovna ALEA'!E22)))*(1-'Půjčovna ALEA'!$E$38),IF($C$53<4,'Půjčovna ALEA'!C22,IF($C$53<7,'Půjčovna ALEA'!D22,IF($C$53>6,'Půjčovna ALEA'!E22)))),0)) -> 8 | I31: =IF($C$14,IF(E31>0,'Půjčovna ALEA'!B22*E31,),IF($C$15,IF(E31>0,'Půjčovna ALEA'!B22/2*E31,),)) -> 0 | J31: 0
A32: =IF($B$19,'Půjčovna ALEA'!A23,IF(E32=0,"",'Půjčovna ALEA'!A23)) -> Počítač Suunto ZOOP NOVO, Aqualung i330+USB nabíječka, VYPER | F32: =IF($B$19,'Půjčovna ALEA'!B23,IF(E32=0,"",'Půjčovna ALEA'!B23)) -> 9000 | G32: =IF($B$19,'Půjčovna ALEA'!C23,IF(E32=0,"",'Půjčovna ALEA'!C23)) -> 130 | H32: =IF($B$19,IF($J$17,IF($C$53<4,'Půjčovna ALEA'!C23,IF($C$53<7,'Půjčovna ALEA'!D23,IF($C$53>6,'Půjčovna ALEA'!E23)))*(1-'Půjčovna ALEA'!$E$38),IF($C$53<4,'Půjčovna ALEA'!C23,IF($C$53<7,'Půjčovna ALEA'!D23,IF($C$53>6,'Půjčovna ALEA'!E23)))),IF(E32>0,IF($J$17,IF($C$53<4,'Půjčovna ALEA'!C23,IF($C$53<7,'Půjčovna ALEA'!D23,IF($C$53>6,'Půjčovna ALEA'!E23)))*(1-'Půjčovna ALEA'!$E$38),IF($C$53<4,'Půjčovna ALEA'!C23,IF($C$53<7,'Půjčovna ALEA'!D23,IF($C$53>6,'Půjčovna ALEA'!E23)))),0)) -> 130 | I32: =IF($C$14,IF(E32>0,'Půjčovna ALEA'!B23*E32,),IF($C$15,IF(E32>0,'Půjčovna ALEA'!B23/2*E32,),)) -> 0 | J32: 0
A33: =IF($B$19,'Půjčovna ALEA'!A24,IF(E33=0,"",'Půjčovna ALEA'!A24)) -> □Kompas SUUNTO SK7, □Hloubkoměr (i v konzoli) | F33: =IF($B$19,'Půjčovna ALEA'!B24,IF(E33=0,"",'Půjčovna ALEA'!B24)) -> 2000 | G33: =IF($B$19,'Půjčovna ALEA'!C24,IF(E33=0,"",'Půjčovna ALEA'!C24)) -> 50 | H33: =IF($B$19,IF($J$17,IF($C$53<4,'Půjčovna ALEA'!C24,IF($C$53<7,'Půjčovna ALEA'!D24,IF($C$53>6,'Půjčovna ALEA'!E24)))*(1-'Půjčovna ALEA'!$E$38),IF($C$53<4,'Půjčovna ALEA'!C24,IF($C$53<7,'Půjčovna ALEA'!D24,IF($C$53>6,'Půjčovna ALEA'!E24)))),IF(E33>0,IF($J$17,IF($C$53<4,'Půjčovna ALEA'!C24,IF($C$53<7,'Půjčovna ALEA'!D24,IF($C$53>6,'Půjčovna ALEA'!E24)))*(1-'Půjčovna ALEA'!$E$38),IF($C$53<4,'Půjčovna ALEA'!C24,IF($C$53<7,'Půjčovna ALEA'!D24,IF($C$53>6,'Půjčovna ALEA'!E24)))),0)) -> 50 | I33: =IF($C$14,IF(E33>0,'Půjčovna ALEA'!B24*E33,),IF($C$15,IF(E33>0,'Půjčovna ALEA'!B24/2*E33,),)) -> 0 | J33: 0
A34: =IF($B$19,'Půjčovna ALEA'!A25,IF(E34=0,"",'Půjčovna ALEA'!A25)) -> Neoprenové botky BEUCHAT, BARE | F34: =IF($B$19,'Půjčovna ALEA'!B25,IF(E34=0,"",'Půjčovna ALEA'!B25)) -> 1500 | G34: =IF($B$19,'Půjčovna ALEA'!C25,IF(E34=0,"",'Půjčovna ALEA'!C25)) -> 50 | H34: =IF($B$19,IF($J$17,IF($C$53<4,'Půjčovna ALEA'!C25,IF($C$53<7,'Půjčovna ALEA'!D25,IF($C$53>6,'Půjčovna ALEA'!E25)))*(1-'Půjčovna ALEA'!$E$38),IF($C$53<4,'Půjčovna ALEA'!C25,IF($C$53<7,'Půjčovna ALEA'!D25,IF($C$53>6,'Půjčovna ALEA'!E25)))),IF(E34>0,IF($J$17,IF($C$53<4,'Půjčovna ALEA'!C25,IF($C$53<7,'Půjčovna ALEA'!D25,IF($C$53>6,'Půjčovna ALEA'!E25)))*(1-'Půjčovna ALEA'!$E$38),IF($C$53<4,'Půjčovna ALEA'!C25,IF($C$53<7,'Půjčovna ALEA'!D25,IF($C$53>6,'Půjčovna ALEA'!E25)))),0)) -> 50 | I34: =IF($C$14,IF(E34>0,'Půjčovna ALEA'!B25*E34,),IF($C$15,IF(E34>0,'Půjčovna ALEA'!B25/2*E34,),)) -> 0 | J34: 0
A35: =IF($B$19,'Půjčovna ALEA'!A26,IF(E35=0,"",'Půjčovna ALEA'!A26)) -> Ploutve ATOMIC SPLITFINS páskové | F35: =IF($B$19,'Půjčovna ALEA'!B26,IF(E35=0,"",'Půjčovna ALEA'!B26)) -> 5000 | G35: =IF($B$19,'Půjčovna ALEA'!C26,IF(E35=0,"",'Půjčovna ALEA'!C26)) -> 80 | H35: =IF($B$19,IF($J$17,IF($C$53<4,'Půjčovna ALEA'!C26,IF($C$53<7,'Půjčovna ALEA'!D26,IF($C$53>6,'Půjčovna ALEA'!E26)))*(1-'Půjčovna ALEA'!$E$38),IF($C$53<4,'Půjčovna ALEA'!C26,IF($C$53<7,'Půjčovna ALEA'!D26,IF($C$53>6,'Půjčovna ALEA'!E26)))),IF(E35>0,IF($J$17,IF($C$53<4,'Půjčovna ALEA'!C26,IF($C$53<7,'Půjčovna ALEA'!D26,IF($C$53>6,'Půjčovna ALEA'!E26)))*(1-'Půjčovna ALEA'!$E$38),IF($C$53<4,'Půjčovna ALEA'!C26,IF($C$53<7,'Půjčovna ALEA'!D26,IF($C$53>6,'Půjčovna ALEA'!E26)))),0)) -> 80 | I35: =IF($C$14,IF(E35>0,'Půjčovna ALEA'!B26*E35,),IF($C$15,IF(E35>0,'Půjčovna ALEA'!B26/2*E35,),)) -> 0 | J35: 0
A36: =IF($B$19,'Půjčovna ALEA'!A27,IF(E36=0,"",'Půjčovna ALEA'!A27)) -> □Plouvte bazénové BEUCHAT, TECHNISUB, □páskové TECHNISUB | F36: =IF($B$19,'Půjčovna ALEA'!B27,IF(E36=0,"",'Půjčovna ALEA'!B27)) -> 1000 | G36: =IF($B$19,'Půjčovna ALEA'!C27,IF(E36=0,"",'Půjčovna ALEA'!C27)) -> 50 | H36: =IF($B$19,IF($J$17,IF($C$53<4,'Půjčovna ALEA'!C27,IF($C$53<7,'Půjčovna ALEA'!D27,IF($C$53>6,'Půjčovna ALEA'!E27)))*(1-'Půjčovna ALEA'!$E$38),IF($C$53<4,'Půjčovna ALEA'!C27,IF($C$53<7,'Půjčovna ALEA'!D27,IF($C$53>6,'Půjčovna ALEA'!E27)))),IF(E36>0,IF($J$17,IF($C$53<4,'Půjčovna ALEA'!C27,IF($C$53<7,'Půjčovna ALEA'!D27,IF($C$53>6,'Půjčovna ALEA'!E27)))*(1-'Půjčovna ALEA'!$E$38),IF($C$53<4,'Půjčovna ALEA'!C27,IF($C$53<7,'Půjčovna ALEA'!D27,IF($C$53>6,'Půjčovna ALEA'!E27)))),0)) -> 50 | I36: =IF($C$14,IF(E36>0,'Půjčovna ALEA'!B27*E36,),IF($C$15,IF(E36>0,'Půjčovna ALEA'!B27/2*E36,),)) -> 0 | J36: 0
A37: =IF($B$19,'Půjčovna ALEA'!A28,IF(E37=0,"",'Půjčovna ALEA'!A28)) -> MASKA - Silikonová BARE, TECHNISUB… | F37: =IF($B$19,'Půjčovna ALEA'!B28,IF(E37=0,"",'Půjčovna ALEA'!B28)) -> 1500 | G37: =IF($B$19,'Půjčovna ALEA'!C28,IF(E37=0,"",'Půjčovna ALEA'!C28)) -> 50 | H37: =IF($B$19,IF($J$17,IF($C$53<4,'Půjčovna ALEA'!C28,IF($C$53<7,'Půjčovna ALEA'!D28,IF($C$53>6,'Půjčovna ALEA'!E28)))*(1-'Půjčovna ALEA'!$E$38),IF($C$53<4,'Půjčovna ALEA'!C28,IF($C$53<7,'Půjčovna ALEA'!D28,IF($C$53>6,'Půjčovna ALEA'!E28)))),IF(E37>0,IF($J$17,IF($C$53<4,'Půjčovna ALEA'!C28,IF($C$53<7,'Půjčovna ALEA'!D28,IF($C$53>6,'Půjčovna ALEA'!E28)))*(1-'Půjčovna ALEA'!$E$38),IF($C$53<4,'Půjčovna ALEA'!C28,IF($C$53<7,'Půjčovna ALEA'!D28,IF($C$53>6,'Půjčovna ALEA'!E28)))),0)) -> 50 | I37: =IF($C$14,IF(E37>0,'Půjčovna ALEA'!B28*E37,),IF($C$15,IF(E37>0,'Půjčovna ALEA'!B28/2*E37,),)) -> 0 | J37: 0
A38: =IF($B$19,'Půjčovna ALEA'!A29,IF(E38=0,"",'Půjčovna ALEA'!A29)) -> □Šnorchl, □ostatní rukavice, □ostatní botky | F38: =IF($B$19,'Půjčovna ALEA'!B29,IF(E38=0,"",'Půjčovna ALEA'!B29)) -> 500 | G38: =IF($B$19,'Půjčovna ALEA'!C29,IF(E38=0,"",'Půjčovna ALEA'!C29)) -> 20 | H38: =IF($B$19,IF($J$17,IF($C$53<4,'Půjčovna ALEA'!C29,IF($C$53<7,'Půjčovna ALEA'!D29,IF($C$53>6,'Půjčovna ALEA'!E29)))*(1-'Půjčovna ALEA'!$E$38),IF($C$53<4,'Půjčovna ALEA'!C29,IF($C$53<7,'Půjčovna ALEA'!D29,IF($C$53>6,'Půjčovna ALEA'!E29)))),IF(E38>0,IF($J$17,IF($C$53<4,'Půjčovna ALEA'!C29,IF($C$53<7,'Půjčovna ALEA'!D29,IF($C$53>6,'Půjčovna ALEA'!E29)))*(1-'Půjčovna ALEA'!$E$38),IF($C$53<4,'Půjčovna ALEA'!C29,IF($C$53<7,'Půjčovna ALEA'!D29,IF($C$53>6,'Půjčovna ALEA'!E29)))),0)) -> 20 | I38: =IF($C$14,IF(E38>0,'Půjčovna ALEA'!B29*E38,),IF($C$15,IF(E38>0,'Půjčovna ALEA'!B29/2*E38,),)) -> 0 | J38: 0
A39: =IF($B$19,'Půjčovna ALEA'!A30,IF(E39=0,"",'Půjčovna ALEA'!A30)) -> RUKAVICE - BARE Kevlar 5mm | F39: =IF($B$19,'Půjčovna ALEA'!B30,IF(E39=0,"",'Půjčovna ALEA'!B30)) -> 1500 | G39: =IF($B$19,'Půjčovna ALEA'!C30,IF(E39=0,"",'Půjčovna ALEA'!C30)) -> 35 | H39: =IF($B$19,IF($J$17,IF($C$53<4,'Půjčovna ALEA'!C30,IF($C$53<7,'Půjčovna ALEA'!D30,IF($C$53>6,'Půjčovna ALEA'!E30)))*(1-'Půjčovna ALEA'!$E$38),IF($C$53<4,'Půjčovna ALEA'!C30,IF($C$53<7,'Půjčovna ALEA'!D30,IF($C$53>6,'Půjčovna ALEA'!E30)))),IF(E39>0,IF($J$17,IF($C$53<4,'Půjčovna ALEA'!C30,IF($C$53<7,'Půjčovna ALEA'!D30,IF($C$53>6,'Půjčovna ALEA'!E30)))*(1-'Půjčovna ALEA'!$E$38),IF($C$53<4,'Půjčovna ALEA'!C30,IF($C$53<7,'Půjčovna ALEA'!D30,IF($C$53>6,'Půjčovna ALEA'!E30)))),0)) -> 35 | I39: =IF($C$14,IF(E39>0,'Půjčovna ALEA'!B30*E39,),IF($C$15,IF(E39>0,'Půjčovna ALEA'!B30/2*E39,),)) -> 0 | J39: 0
A40: =IF($B$19,'Půjčovna ALEA'!A31,IF(E40=0,"",'Půjčovna ALEA'!A31)) -> □Nůž, □Redukce DIN/INT, □Deco boje | F40: =IF($B$19,'Půjčovna ALEA'!B31,IF(E40=0,"",'Půjčovna ALEA'!B31)) -> 1500 | G40: =IF($B$19,'Půjčovna ALEA'!C31,IF(E40=0,"",'Půjčovna ALEA'!C31)) -> 20 | H40: =IF($B$19,IF($J$17,IF($C$53<4,'Půjčovna ALEA'!C31,IF($C$53<7,'Půjčovna ALEA'!D31,IF($C$53>6,'Půjčovna ALEA'!E31)))*(1-'Půjčovna ALEA'!$E$38),IF($C$53<4,'Půjčovna ALEA'!C31,IF($C$53<7,'Půjčovna ALEA'!D31,IF($C$53>6,'Půjčovna ALEA'!E31)))),IF(E40>0,IF($J$17,IF($C$53<4,'Půjčovna ALEA'!C31,IF($C$53<7,'Půjčovna ALEA'!D31,IF($C$53>6,'Půjčovna ALEA'!E31)))*(1-'Půjčovna ALEA'!$E$38),IF($C$53<4,'Půjčovna ALEA'!C31,IF($C$53<7,'Půjčovna ALEA'!D31,IF($C$53>6,'Půjčovna ALEA'!E31)))),0)) -> 20 | I40: =IF($C$14,IF(E40>0,'Půjčovna ALEA'!B31*E40,),IF($C$15,IF(E40>0,'Půjčovna ALEA'!B31/2*E40,),)) -> 0 | J40: 0
A41: =IF($B$19,'Půjčovna ALEA'!A32,IF(E41=0,"",'Půjčovna ALEA'!A32)) -> Bedna na výstroj - AKCE - půjčovné ZDARMA | F41: =IF($B$19,'Půjčovna ALEA'!B32,IF(E41=0,"",'Půjčovna ALEA'!B32)) -> 500 | G41: =IF($B$19,'Půjčovna ALEA'!C32,IF(E41=0,"",'Půjčovna ALEA'!C32)) -> 0 | H41: =IF($B$19,IF($J$17,IF($C$53<4,'Půjčovna ALEA'!C32,IF($C$53<7,'Půjčovna ALEA'!D32,IF($C$53>6,'Půjčovna ALEA'!E32)))*(1-'Půjčovna ALEA'!$E$38),IF($C$53<4,'Půjčovna ALEA'!C32,IF($C$53<7,'Půjčovna ALEA'!D32,IF($C$53>6,'Půjčovna ALEA'!E32)))),IF(E41>0,IF($J$17,IF($C$53<4,'Půjčovna ALEA'!C32,IF($C$53<7,'Půjčovna ALEA'!D32,IF($C$53>6,'Půjčovna ALEA'!E32)))*(1-'Půjčovna ALEA'!$E$38),IF($C$53<4,'Půjčovna ALEA'!C32,IF($C$53<7,'Půjčovna ALEA'!D32,IF($C$53>6,'Půjčovna ALEA'!E32)))),0)) -> 0 | I41: =IF($C$14,IF(E41>0,'Půjčovna ALEA'!B32*E41,),IF($C$15,IF(E41>0,'Půjčovna ALEA'!B32/2*E41,),)) -> 0 | J41: 0
A42: =IF($B$19,'Půjčovna ALEA'!A33,IF(E42=0,"",'Půjčovna ALEA'!A33)) -> Plnění lahví 1L (% EANx) | B42: =IF(AND(E21>0,E42=""),"PŘIPOČÍTAT VZDUCH","") ->  | D42: 0.21 | F42: =IF($B$19,'Půjčovna ALEA'!B33,IF(E42=0,"",'Půjčovna ALEA'!B33)) -> 0 | G42: ='Půjčovna ALEA'!C33 -> 12 | H42: =ROUND(IF($J$17,G42*0.8,G42),0) -> 12 | J42: =IF(D42>0.21,I42+H42*E42*(1+D42),I42+H42*E42) -> 0
J43: =I43+H43*E43*$C$53+F43 -> 0
J44: =I44+H44*E44*$C$53+F44 -> 0
J45: =I45+H45*E45*$C$53+F45 -> 0
A46: Doprava výstroje na námi pořádané akce a kurzy - počet km | F46: Km | G46: 0.5 | H46: Kč/Km | J46: =G46*E46 -> 0
A47: Celkem | J47: =SUM(J21:J46) -> 0
A49: Poznámky
B52: Datum zapůjčení: | C52: 2023-09-14 | G52: Datum vrácení: | H52: 2023-09-15
B53: Celkem účtovaných dní: | C53: =H52-C52 -> 1 | E53: 4 - 6 dní sleva 17%
E54: 7 a více dní sleva 25%
A56: Beru na vědomí, že materiál a učebnice mi jsou zapůjčeny a jsem povinen je vrátit v dohodnutém termínu. Při nedodržení termínu vrácení zaplatím za každý započatý den dvojnásobnou sazbu půjčovného. Souhlasím s tím, že budu zapůjčený materiál udržovat a zacházet s ním opatrně. Zodpovídám také za poškození materiálu z nedbalosti nebo za jeho ztrátu, v tom případě uhradím náklady spojené s pořízením poškozené nebo ztracené věci v plné výši. Souhlasím s pořízením kopie OP/pasu.
A58: Datum: | B58: =TODAY() -> 2023-09-14 | E58: Podpis: | F58: _______________________
A61: SMLOUVA O ZAPŮJČENÍ VÝSTROJE
A62: ZPROŠTĚNÍ ODPOVĚDNOSTI A VÝSLOVNÉ PŘEVZETÍ RIZIKA
A64: Tato smlouva je uzavřena mezi ALEA Divers - Jiří Jarkovský, ALEA s.r.o. a
A65: ="a "&UPPER(B8) -> a | C65: dále jen „nájemce"
A66: pro zapůjčení potápěčské přístrojové a/nebo šnorchlovací výstroje.
A67: Tato smlouva je zproštěním práva nájemce na žalobu za zranění nebo smrt následkem zapůjčení a/nebo použití této výstroje. Nájemce výslovně přebírá veškerá rizika spojená s šnorchlování a/nebo potápěním s přístrojem vztahujícímu se jakýmkoliv způsobem k zapůjčené výstroji a/nebo použití této výstroje. .
A68: Nájemce tímto ztvrzuje obdržení výstroje zapsané v tomto Formuláři, a pokud cokoliv z této výstroje bude použito pro potápění s přístrojem, že nájemce je kvalifikovaný potápěč s přístrojem nebo student potápěč v kursu/programu potápění s přístrojem pod dohledem kvalifikovaného potápěčského instruktora. .
A69: Nájemce potvrzuje, že tato výstroj je v dobré funkční kondici a že si vyzkoušel výstroj pro ujištění, že nemá žádné defekty, včetně kontroly obojího kvality i kvantity vzduchu v jakékoliv zapůjčené láhvi. .
A70: Nájemce také rozumí, že ALEA Divers - Jiří Jarkovský, ALEA s.r.o. a jeho zaměstnanci, majitelé, funkcionáři nebo agenti (dále jen „Zproštěné Strany“), nemohou být činěni odpovědnými a jakkoliv zodpovídat za jakékoliv zranění, smrt nebo jiné škody nájemce nebo jeho rodiny, dědiců a zástupců, které mohou nastat jako následek zapůjčení a/nebo používání výstroje, nebo jako následek poruchy produktu, nebo nedbalostí jakékoliv strany, včetně Zproštěných Stran, ať už pasivní nebo aktivní. .
A71: Nájemce souhlasí nahradit ALEA Divers - Jiří Jarkovský, ALEA s.r.o. ztrátu nebo poškození jakékoliv a veškeré výstroje v platné náhradní hodnotě a také nahradit ztráty způsobené při transportování výstroje.
A72: Nájemce souhlasí vrátit výstroj v čisté podobě a zaplatit za čištění, pokud je v čistotě nevrátí. .
A73: Rozumím, že podmínky zde uvedené jsou smluvní a ne pouhé konstatování, a že jsem podepsal tento dokument ze své vlastní svobodné vůle a s vědomím, že tímto souhlasím vzdát se svých právních nároků. .
A74: Dále souhlasím, že pokud se některé ustanovení této Smlouvy stane neplatným nebo neúčinným, může být takové ustanovení vypuštěno z této smlouvy. Zbytek této smlouvy bude potom chápán tak, jako by toto neúčinné ustanovení nikdy neobsahovala. .
A76: ="JÁ, "&UPPER(B8)&", JSEM POZORNĚ ČETL A POCHOPIL VÝŠE UVEDENOU SMLOUVU." -> JÁ, , JSEM POZORNĚ ČETL A POCHOPIL VÝŠE UVEDENOU SMLOUVU.
A77: PODEPSÁNÍM TÉTO SMLOUVY, ZPROŠŤUJI A ZBAVUJI ALEA Divers - Jiří Jarkovský, ALEA s.r.o. A VŠECHNY SOUVISEJÍCÍ CELKY JAK JSOU DEFINOVÁNY VÝŠE, VEŠKERÉ ODPOVĚDNOSTI A ZODPOVĚDNOSTI ZA JAKÉKOLIV OSOBNÍ ZRANĚNÍ, POŠKOZENÍ MAJETKU NEBO SMRTI, JAKO NÁSLEDEK ZAPŮJČENÍ A /NEBO POUŽITÍ TÉTO VÝSTROJE, JAKKOLIV ZPŮSOBENÉ, POČÍTAJE V TO, ALE NE LIMITOVÁNO NA NÁSLEDEK ODPOVĚDNOSTI NEBO NEDBALOSTI ZPROŠTĚNÝCH STRAN, AŤ UŽ PASIVNÍ NEBO AKTIVNÍ. ZPLNOMOCŇUJI ALEA Divers - Jiří Jarkovský, ALEA s.r.o. K ZATÍŽENÍ MOJÍ KREDITNÍ KARTY UVEDENÉ VÝŠE, ZA KAŽDÝ DEN POZDNÍHO VRÁCENÍ VÝTROJE.
E82: =TODAY() -> 2023-09-14
A83: Podpis nájemce | D83: Datum (den/měsíc/rok)

Sheet formulář věci na bazén_V.V.
B1: Rozpis věcí na: | E1: Bazen Kralupy | Q1: 2023-09-12 | V1: FALSE | W1: BAZEN | Z1: FALSE | AA1: VOLNA VODA
B2: Nářadí O2 podložka… | E2: Láhev velikost | G2: Pásek | H2: Olovo počet ks | J2: BCD (vel./čís.) tec - int. | L2: reg (číslo) | N2: s-seac a-aqua d-dam p-pan | Q2: rukavice | S2: maska | U2: ploutve s - SPLIT | W2: botky o - old | Y2: počítač | AA2: světlo | AC2: Dopr. KM | AD2: Počet dní | AE2: Cena baz | AF2: Ostatní
A3: Datum zápisu | B3: Jméno a příjmení | C3: Kontakt / důvod | D3: Kč | N3: oblek dlouhý | O3: oblek short
A4: =TODAY() -> 2023-09-14 | D4: =(IF(AG4,(F4+I4+K4+M4+P4+R4+T4+V4+X4+Z4+AB4)*(1-'Půjčovna ALEA'!$E$38),F4+I4+K4+M4+P4+R4+T4+V4+X4+Z4+AB4)+IF(ISNUMBER(VALUE(AE4)),AE4,0)+'formulář půjčovna'!$G$46*IF(ISNUMBER(VALUE(AC4)),AC4,0))*IF(AND(ISNUMBER(VALUE(AD4)),AD4>0),AD4,1) -> 0 | F4: =IF(E4<>"",IF(ISNUMBER(VALUE(E4)),'Půjčovna ALEA'!C$13+(E4*'Půjčovna ALEA'!C$33),('Půjčovna ALEA'!C$13+(10*'Půjčovna ALEA'!C$33))),0) -> 0 | I4: =IF((G4<>""),'Půjčovna ALEA'!C$21,0)+(IF((H4<>""),IF(ISNUMBER(VALUE(H4)),('Půjčovna ALEA'!C$22*H4),(('Půjčovna ALEA'!C$22)*6)),0)) -> 0 | K4: =IF((J4<>""),IF((LEFT(J4,3)="tec"),'Půjčovna ALEA'!C$15,'Půjčovna ALEA'!C$13),0) -> 0 | M4: =IF((L4<>""),'Půjčovna ALEA'!C$18,0) -> 0 | P4: =IF((N4<>""),IF((LEFT(N4,1)="o"),'Půjčovna ALEA'!C$16,'Půjčovna ALEA'!C$17),0)+IF((O4<>""),IF((LEFT(O4,1)="o"),'Půjčovna ALEA'!C$16,'Půjčovna ALEA'!C$17),0) -> 0 | R4: =IF((Q4<>""),'Půjčovna ALEA'!C$30,0) -> 0 | T4: =IF((S4<>""),'Půjčovna ALEA'!C$28,0) -> 0 | V4: =IF((U4<>""),IF((LEFT(U4,1)="s"),'Půjčovna ALEA'!C$26,'Půjčovna ALEA'!C$27),0) -> 0 | X4: =IF((W4<>""),IF((LEFT(W4,1)="o"),'Půjčovna ALEA'!C$29,'Půjčovna ALEA'!C$25),0) -> 0 | Z4: =IF((Y4<>""),'Půjčovna ALEA'!C$23,0) -> 0 | AB4: =IF((AA4<>""),IF((LEFT(AA4,1)="l"),'Půjčovna ALEA'!C$19,'Půjčovna ALEA'!C$20),0) -> 0
D5: =(IF(AG5,(F5+I5+K5+M5+P5+R5+T5+V5+X5+Z5+AB5)*(1-'Půjčovna ALEA'!$E$38),F5+I5+K5+M5+P5+R5+T5+V5+X5+Z5+AB5)+IF(ISNUMBER(VALUE(AE5)),AE5,0)+'formulář půjčovna'!$G$46*IF(ISNUMBER(VALUE(AC5)),AC5,0))*IF(AND(ISNUMBER(VALUE(AD5)),AD5>0),AD5,1) -> 0 | F5: =IF(E5<>"",IF(ISNUMBER(VALUE(E5)),'Půjčovna ALEA'!C$13+(E5*'Půjčovna ALEA'!C$33),('Půjčovna ALEA'!C$13+(10*'Půjčovna ALEA'!C$33))),0) -> 0 | I5: =IF((G5<>""),'Půjčovna ALEA'!C$21,0)+(IF((H5<>""),IF(ISNUMBER(VALUE(H5)),('Půjčovna ALEA'!C$22*H5),(('Půjčovna ALEA'!C$22)*6)),0)) -> 0 | K5: =IF((J5<>""),IF((LEFT(J5,3)="tec"),'Půjčovna ALEA'!C$15,'Půjčovna ALEA'!C$13),0) -> 0 | M5: =IF((L5<>""),'Půjčovna ALEA'!C$18,0) -> 0 | P5: =IF((N5<>""),IF((LEFT(N5,1)="o"),'Půjčovna ALEA'!C$16,'Půjčovna ALEA'!C$17),0)+IF((O5<>""),IF((LEFT(O5,1)="o"),'Půjčovna ALEA'!C$16,'Půjčovna ALEA'!C$17),0) -> 0 | R5: =IF((Q5<>""),'Půjčovna ALEA'!C$30,0) -> 0 | T5: =IF((S5<>""),'Půjčovna ALEA'!C$28,0) -> 0 | V5: =IF((U5<>""),IF((LEFT(U5,1)="s"),'Půjčovna ALEA'!C$26,'Půjčovna ALEA'!C$27),0) -> 0 | X5: =IF((W5<>""),IF((LEFT(W5,1)="o"),'Půjčovna ALEA'!C$29,'Půjčovna ALEA'!C$25),0) -> 0 | Z5: =IF((Y5<>""),'Půjčovna ALEA'!C$23,0) -> 0 | AB5: =IF((AA5<>""),IF((LEFT(AA5,1)="l"),'Půjčovna ALEA'!C$19,'Půjčovna ALEA'!C$20),0) -> 0
A6: 3 | D6: =(IF(AG6,(F6+I6+K6+M6+P6+R6+T6+V6+X6+Z6+AB6)*(1-'Půjčovna ALEA'!$E$38),F6+I6+K6+M6+P6+R6+T6+V6+X6+Z6+AB6)+IF(ISNUMBER(VALUE(AE6)),AE6,0)+'formulář půjčovna'!$G$46*IF(ISNUMBER(VALUE(AC6)),AC6,0))*IF(AND(ISNUMBER(VALUE(AD6)),AD6>0),AD6,1) -> 0 | F6: =IF(E6<>"",IF(ISNUMBER(VALUE(E6)),'Půjčovna ALEA'!C$13+(E6*'Půjčovna ALEA'!C$33),('Půjčovna ALEA'!C$13+(10*'Půjčovna ALEA'!C$33))),0) -> 0 | I6: =IF((G6<>""),'Půjčovna ALEA'!C$21,0)+(IF((H6<>""),IF(ISNUMBER(VALUE(H6)),('Půjčovna ALEA'!C$22*H6),(('Půjčovna ALEA'!C$22)*6)),0)) -> 0 | K6: =IF((J6<>""),IF((LEFT(J6,3)="tec"),'Půjčovna ALEA'!C$15,'Půjčovna ALEA'!C$13),0) -> 0 | M6: =IF((L6<>""),'Půjčovna ALEA'!C$18,0) -> 0 | P6: =IF((N6<>""),IF((LEFT(N6,1)="o"),'Půjčovna ALEA'!C$16,'Půjčovna ALEA'!C$17),0)+IF((O6<>""),IF((LEFT(O6,1)="o"),'Půjčovna ALEA'!C$16,'Půjčovna ALEA'!C$17),0) -> 0 | R6: =IF((Q6<>""),'Půjčovna ALEA'!C$30,0) -> 0 | T6: =IF((S6<>""),'Půjčovna ALEA'!C$28,0) -> 0 | V6: =IF((U6<>""),IF((LEFT(U6,1)="s"),'Půjčovna ALEA'!C$26,'Půjčovna ALEA'!C$27),0) -> 0 | X6: =IF((W6<>""),IF((LEFT(W6,1)="o"),'Půjčovna ALEA'!C$29,'Půjčovna ALEA'!C$25),0) -> 0 | Z6: =IF((Y6<>""),'Půjčovna ALEA'!C$23,0) -> 0 | AB6: =IF((AA6<>""),IF((LEFT(AA6,1)="l"),'Půjčovna ALEA'!C$19,'Půjčovna ALEA'!C$20),0) -> 0
A7: 4 | D7: =(IF(AG7,(F7+I7+K7+M7+P7+R7+T7+V7+X7+Z7+AB7)*(1-'Půjčovna ALEA'!$E$38),F7+I7+K7+M7+P7+R7+T7+V7+X7+Z7+AB7)+IF(ISNUMBER(VALUE(AE7)),AE7,0)+'formulář půjčovna'!$G$46*IF(ISNUMBER(VALUE(AC7)),AC7,0))*IF(AND(ISNUMBER(VALUE(AD7)),AD7>0),AD7,1) -> 0 | F7: =IF(E7<>"",IF(ISNUMBER(VALUE(E7)),'Půjčovna ALEA'!C$13+(E7*'Půjčovna ALEA'!C$33),('Půjčovna ALEA'!C$13+(10*'Půjčovna ALEA'!C$33))),0) -> 0 | I7: =IF((G7<>""),'Půjčovna ALEA'!C$21,0)+(IF((H7<>""),IF(ISNUMBER(VALUE(H7)),('Půjčovna ALEA'!C$22*H7),(('Půjčovna ALEA'!C$22)*6)),0)) -> 0 | K7: =IF((J7<>""),IF((LEFT(J7,3)="tec"),'Půjčovna ALEA'!C$15,'Půjčovna ALEA'!C$13),0) -> 0 | M7: =IF((L7<>""),'Půjčovna ALEA'!C$18,0) -> 0 | P7: =IF((N7<>""),IF((LEFT(N7,1)="o"),'Půjčovna ALEA'!C$16,'Půjčovna ALEA'!C$17),0)+IF((O7<>""),IF((LEFT(O7,1)="o"),'Půjčovna ALEA'!C$16,'Půjčovna ALEA'!C$17),0) -> 0 | R7: =IF((Q7<>""),'Půjčovna ALEA'!C$30,0) -> 0 | T7: =IF((S7<>""),'Půjčovna ALEA'!C$28,0) -> 0 | V7: =IF((U7<>""),IF((LEFT(U7,1)="s"),'Půjčovna ALEA'!C$26,'Půjčovna ALEA'!C$27),0) -> 0 | X7: =IF((W7<>""),IF((LEFT(W7,1)="o"),'Půjčovna ALEA'!C$29,'Půjčovna ALEA'!C$25),0) -> 0 | Z7: =IF((Y7<>""),'Půjčovna ALEA'!C$23,0) -> 0 | AB7: =IF((AA7<>""),IF((LEFT(AA7,1)="l"),'Půjčovna ALEA'!C$19,'Půjčovna ALEA'!C$20),0) -> 0
A8: 5 | D8: =(IF(AG8,(F8+I8+K8+M8+P8+R8+T8+V8+X8+Z8+AB8)*(1-'Půjčovna ALEA'!$E$38),F8+I8+K8+M8+P8+R8+T8+V8+X8+Z8+AB8)+IF(ISNUMBER(VALUE(AE8)),AE8,0)+'formulář půjčovna'!$G$46*IF(ISNUMBER(VALUE(AC8)),AC8,0))*IF(AND(ISNUMBER(VALUE(AD8)),AD8>0),AD8,1) -> 0 | F8: =IF(E8<>"",IF(ISNUMBER(VALUE(E8)),'Půjčovna ALEA'!C$13+(E8*'Půjčovna ALEA'!C$33),('Půjčovna ALEA'!C$13+(10*'Půjčovna ALEA'!C$33))),0) -> 0 | I8: =IF((G8<>""),'Půjčovna ALEA'!C$21,0)+(IF((H8<>""),IF(ISNUMBER(VALUE(H8)),('Půjčovna ALEA'!C$22*H8),(('Půjčovna ALEA'!C$22)*6)),0)) -> 0 | K8: =IF((J8<>""),IF((LEFT(J8,3)="tec"),'Půjčovna ALEA'!C$15,'Půjčovna ALEA'!C$13),0) -> 0 | M8: =IF((L8<>""),'Půjčovna ALEA'!C$18,0) -> 0 | P8: =IF((N8<>""),IF((LEFT(N8,1)="o"),'Půjčovna ALEA'!C$16,'Půjčovna ALEA'!C$17),0)+IF((O8<>""),IF((LEFT(O8,1)="o"),'Půjčovna ALEA'!C$16,'Půjčovna ALEA'!C$17),0) -> 0 | R8: =IF((Q8<>""),'Půjčovna ALEA'!C$30,0) -> 0 | T8: =IF((S8<>""),'Půjčovna ALEA'!C$28,0) -> 0 | V8: =IF((U8<>""),IF((LEFT(U8,1)="s"),'Půjčovna ALEA'!C$26,'Půjčovna ALEA'!C$27),0) -> 0 | X8: =IF((W8<>""),IF((LEFT(W8,1)="o"),'Půjčovna ALEA'!C$29,'Půjčovna ALEA'!C$25),0) -> 0 | Z8: =IF((Y8<>""),'Půjčovna ALEA'!C$23,0) -> 0 | AB8: =IF((AA8<>""),IF((LEFT(AA8,1)="l"),'Půjčovna ALEA'!C$19,'Půjčovna ALEA'!C$20),0) -> 0
A9: 6 | D9: =(IF(AG9,(F9+I9+K9+M9+P9+R9+T9+V9+X9+Z9+AB9)*(1-'Půjčovna ALEA'!$E$38),F9+I9+K9+M9+P9+R9+T9+V9+X9+Z9+AB9)+IF(ISNUMBER(VALUE(AE9)),AE9,0)+'formulář půjčovna'!$G$46*IF(ISNUMBER(VALUE(AC9)),AC9,0))*IF(AND(ISNUMBER(VALUE(AD9)),AD9>0),AD9,1) -> 0 | F9: =IF(E9<>"",IF(ISNUMBER(VALUE(E9)),'Půjčovna ALEA'!C$13+(E9*'Půjčovna ALEA'!C$33),('Půjčovna ALEA'!C$13+(10*'Půjčovna ALEA'!C$33))),0) -> 0 | I9: =IF((G9<>""),'Půjčovna ALEA'!C$21,0)+(IF((H9<>""),IF(ISNUMBER(VALUE(H9)),('Půjčovna ALEA'!C$22*H9),(('Půjčovna ALEA'!C$22)*6)),0)) -> 0 | K9: =IF((J9<>""),IF((LEFT(J9,3)="tec"),'Půjčovna ALEA'!C$15,'Půjčovna ALEA'!C$13),0) -> 0 | M9: =IF((L9<>""),'Půjčovna ALEA'!C$18,0) -> 0 | P9: =IF((N9<>""),IF((LEFT(N9,1)="o"),'Půjčovna ALEA'!C$16,'Půjčovna ALEA'!C$17),0)+IF((O9<>""),IF((LEFT(O9,1)="o"),'Půjčovna ALEA'!C$16,'Půjčovna ALEA'!C$17),0) -> 0 | R9: =IF((Q9<>""),'Půjčovna ALEA'!C$30,0) -> 0 | T9: =IF((S9<>""),'Půjčovna ALEA'!C$28,0) -> 0 | V9: =IF((U9<>""),IF((LEFT(U9,1)="s"),'Půjčovna ALEA'!C$26,'Půjčovna ALEA'!C$27),0) -> 0 | X9: =IF((W9<>""),IF((LEFT(W9,1)="o"),'Půjčovna ALEA'!C$29,'Půjčovna ALEA'!C$25),0) -> 0 | Z9: =IF((Y9<>""),'Půjčovna ALEA'!C$23,0) -> 0 | AB9: =IF((AA9<>""),IF((LEFT(AA9,1)="l"),'Půjčovna ALEA'!C$19,'Půjčovna ALEA'!C$20),0) -> 0
A10: 7 | D10: =(IF(AG10,(F10+I10+K10+M10+P10+R10+T10+V10+X10+Z10+AB10)*(1-'Půjčovna ALEA'!$E$38),F10+I10+K10+M10+P10+R10+T10+V10+X10+Z10+AB10)+IF(ISNUMBER(VALUE(AE10)),AE10,0)+'formulář půjčovna'!$G$46*IF(ISNUMBER(VALUE(AC10)),AC10,0))*IF(AND(ISNUMBER(VALUE(AD10)),AD10>0),AD10,1) -> 0 | F10: =IF(E10<>"",IF(ISNUMBER(VALUE(E10)),'Půjčovna ALEA'!C$13+(E10*'Půjčovna ALEA'!C$33),('Půjčovna ALEA'!C$13+(10*'Půjčovna ALEA'!C$33))),0) -> 0 | I10: =IF((G10<>""),'Půjčovna ALEA'!C$21,0)+(IF((H10<>""),IF(ISNUMBER(VALUE(H10)),('Půjčovna ALEA'!C$22*H10),(('Půjčovna ALEA'!C$22)*6)),0)) -> 0 | K10: =IF((J10<>""),IF((LEFT(J10,3)="tec"),'Půjčovna ALEA'!C$15,'Půjčovna ALEA'!C$13),0) -> 0 | M10: =IF((L10<>""),'Půjčovna ALEA'!C$18,0) -> 0 | P10: =IF((N10<>""),IF((LEFT(N10,1)="o"),'Půjčovna ALEA'!C$16,'Půjčovna ALEA'!C$17),0)+IF((O10<>""),IF((LEFT(O10,1)="o"),'Půjčovna ALEA'!C$16,'Půjčovna ALEA'!C$17),0) -> 0 | R10: =IF((Q10<>""),'Půjčovna ALEA'!C$30,0) -> 0 | T10: =IF((S10<>""),'Půjčovna ALEA'!C$28,0) -> 0 | V10: =IF((U10<>""),IF((LEFT(U10,1)="s"),'Půjčovna ALEA'!C$26,'Půjčovna ALEA'!C$27),0) -> 0 | X10: =IF((W10<>""),IF((LEFT(W10,1)="o"),'Půjčovna ALEA'!C$29,'Půjčovna ALEA'!C$25),0) -> 0 | Z10: =IF((Y10<>""),'Půjčovna ALEA'!C$23,0) -> 0 | AB10: =IF((AA10<>""),IF((LEFT(AA10,1)="l"),'Půjčovna ALEA'!C$19,'Půjčovna ALEA'!C$20),0) -> 0
A11: 8 | D11: =(IF(AG11,(F11+I11+K11+M11+P11+R11+T11+V11+X11+Z11+AB11)*(1-'Půjčovna ALEA'!$E$38),F11+I11+K11+M11+P11+R11+T11+V11+X11+Z11+AB11)+IF(ISNUMBER(VALUE(AE11)),AE11,0)+'formulář půjčovna'!$G$46*IF(ISNUMBER(VALUE(AC11)),AC11,0))*IF(AND(ISNUMBER(VALUE(AD11)),AD11>0),AD11,1) -> 0 | F11: =IF(E11<>"",IF(ISNUMBER(VALUE(E11)),'Půjčovna ALEA'!C$13+(E11*'Půjčovna ALEA'!C$33),('Půjčovna ALEA'!C$13+(10*'Půjčovna ALEA'!C$33))),0) -> 0 | I11: =IF((G11<>""),'Půjčovna ALEA'!C$21,0)+(IF((H11<>""),IF(ISNUMBER(VALUE(H11)),('Půjčovna ALEA'!C$22*H11),(('Půjčovna ALEA'!C$22)*6)),0)) -> 0 | K11: =IF((J11<>""),IF((LEFT(J11,3)="tec"),'Půjčovna ALEA'!C$15,'Půjčovna ALEA'!C$13),0) -> 0 | M11: =IF((L11<>""),'Půjčovna ALEA'!C$18,0) -> 0 | P11: =IF((N11<>""),IF((LEFT(N11,1)="o"),'Půjčovna ALEA'!C$16,'Půjčovna ALEA'!C$17),0)+IF((O11<>""),IF((LEFT(O11,1)="o"),'Půjčovna ALEA'!C$16,'Půjčovna ALEA'!C$17),0) -> 0 | R11: =IF((Q11<>""),'Půjčovna ALEA'!C$30,0) -> 0 | T11: =IF((S11<>""),'Půjčovna ALEA'!C$28,0) -> 0 | V11: =IF((U11<>""),IF((LEFT(U11,1)="s"),'Půjčovna ALEA'!C$26,'Půjčovna ALEA'!C$27),0) -> 0 | X11: =IF((W11<>""),IF((LEFT(W11,1)="o"),'Půjčovna ALEA'!C$29,'Půjčovna ALEA'!C$25),0) -> 0 | Z11: =IF((Y11<>""),'Půjčovna ALEA'!C$23,0) -> 0 | AB11: =IF((AA11<>""),IF((LEFT(AA11,1)="l"),'Půjčovna ALEA'!C$19,'Půjčovna ALEA'!C$20),0) -> 0
A12: 9 | D12: =(IF(AG12,(F12+I12+K12+M12+P12+R12+T12+V12+X12+Z12+AB12)*(1-'Půjčovna ALEA'!$E$38),F12+I12+K12+M12+P12+R12+T12+V12+X12+Z12+AB12)+IF(ISNUMBER(VALUE(AE12)),AE12,0)+'formulář půjčovna'!$G$46*IF(ISNUMBER(VALUE(AC12)),AC12,0))*IF(AND(ISNUMBER(VALUE(AD12)),AD12>0),AD12,1) -> 0 | F12: =IF(E12<>"",IF(ISNUMBER(VALUE(E12)),'Půjčovna ALEA'!C$13+(E12*'Půjčovna ALEA'!C$33),('Půjčovna ALEA'!C$13+(10*'Půjčovna ALEA'!C$33))),0) -> 0 | I12: =IF((G12<>""),'Půjčovna ALEA'!C$21,0)+(IF((H12<>""),IF(ISNUMBER(VALUE(H12)),('Půjčovna ALEA'!C$22*H12),(('Půjčovna ALEA'!C$22)*6)),0)) -> 0 | K12: =IF((J12<>""),IF((LEFT(J12,3)="tec"),'Půjčovna ALEA'!C$15,'Půjčovna ALEA'!C$13),0) -> 0 | M12: =IF((L12<>""),'Půjčovna ALEA'!C$18,0) -> 0 | P12: =IF((N12<>""),IF((LEFT(N12,1)="o"),'Půjčovna ALEA'!C$16,'Půjčovna ALEA'!C$17),0)+IF((O12<>""),IF((LEFT(O12,1)="o"),'Půjčovna ALEA'!C$16,'Půjčovna ALEA'!C$17),0) -> 0 | R12: =IF((Q12<>""),'Půjčovna ALEA'!C$30,0) -> 0 | T12: =IF((S12<>""),'Půjčovna ALEA'!C$28,0) -> 0 | V12: =IF((U12<>""),IF((LEFT(U12,1)="s"),'Půjčovna ALEA'!C$26,'Půjčovna ALEA'!C$27),0) -> 0 | X12: =IF((W12<>""),IF((LEFT(W12,1)="o"),'Půjčovna ALEA'!C$29,'Půjčovna ALEA'!C$25),0) -> 0 | Z12: =IF((Y12<>""),'Půjčovna ALEA'!C$23,0) -> 0 | AB12: =IF((AA12<>""),IF((LEFT(AA12,1)="l"),'Půjčovna ALEA'!C$19,'Půjčovna ALEA'!C$20),0) -> 0
A13: 10 | D13: =(IF(AG13,(F13+I13+K13+M13+P13+R13+T13+V13+X13+Z13+AB13)*(1-'Půjčovna ALEA'!$E$38),F13+I13+K13+M13+P13+R13+T13+V13+X13+Z13+AB13)+IF(ISNUMBER(VALUE(AE13)),AE13,0)+'formulář půjčovna'!$G$46*IF(ISNUMBER(VALUE(AC13)),AC13,0))*IF(AND(ISNUMBER(VALUE(AD13)),AD13>0),AD13,1) -> 0 | F13: =IF(E13<>"",IF(ISNUMBER(VALUE(E13)),'Půjčovna ALEA'!C$13+(E13*'Půjčovna ALEA'!C$33),('Půjčovna ALEA'!C$13+(10*'Půjčovna ALEA'!C$33))),0) -> 0 | I13: =IF((G13<>""),'Půjčovna ALEA'!C$21,0)+(IF((H13<>""),IF(ISNUMBER(VALUE(H13)),('Půjčovna ALEA'!C$22*H13),(('Půjčovna ALEA'!C$22)*6)),0)) -> 0 | K13: =IF((J13<>""),IF((LEFT(J13,3)="tec"),'Půjčovna ALEA'!C$15,'Půjčovna ALEA'!C$13),0) -> 0 | M13: =IF((L13<>""),'Půjčovna ALEA'!C$18,0) -> 0 | P13: =IF((N13<>""),IF((LEFT(N13,1)="o"),'Půjčovna ALEA'!C$16,'Půjčovna ALEA'!C$17),0)+IF((O13<>""),IF((LEFT(O13,1)="o"),'Půjčovna ALEA'!C$16,'Půjčovna ALEA'!C$17),0) -> 0 | R13: =IF((Q13<>""),'Půjčovna ALEA'!C$30,0) -> 0 | T13: =IF((S13<>""),'Půjčovna ALEA'!C$28,0) -> 0 | V13: =IF((U13<>""),IF((LEFT(U13,1)="s"),'Půjčovna ALEA'!C$26,'Půjčovna ALEA'!C$27),0) -> 0 | X13: =IF((W13<>""),IF((LEFT(W13,1)="o"),'Půjčovna ALEA'!C$29,'Půjčovna ALEA'!C$25),0) -> 0 | Z13: =IF((Y13<>""),'Půjčovna ALEA'!C$23,0) -> 0 | AB13: =IF((AA13<>""),IF((LEFT(AA13,1)="l"),'Půjčovna ALEA'!C$19,'Půjčovna ALEA'!C$20),0) -> 0
A14: 11 | D14: =(IF(AG14,(F14+I14+K14+M14+P14+R14+T14+V14+X14+Z14+AB14)*(1-'Půjčovna ALEA'!$E$38),F14+I14+K14+M14+P14+R14+T14+V14+X14+Z14+AB14)+IF(ISNUMBER(VALUE(AE14)),AE14,0)+'formulář půjčovna'!$G$46*IF(ISNUMBER(VALUE(AC14)),AC14,0))*IF(AND(ISNUMBER(VALUE(AD14)),AD14>0),AD14,1) -> 0 | F14: =IF(E14<>"",IF(ISNUMBER(VALUE(E14)),'Půjčovna ALEA'!C$13+(E14*'Půjčovna ALEA'!C$33),('Půjčovna ALEA'!C$13+(10*'Půjčovna ALEA'!C$33))),0) -> 0 | I14: =IF((G14<>""),'Půjčovna ALEA'!C$21,0)+(IF((H14<>""),IF(ISNUMBER(VALUE(H14)),('Půjčovna ALEA'!C$22*H14),(('Půjčovna ALEA'!C$22)*6)),0)) -> 0 | K14: =IF((J14<>""),IF((LEFT(J14,3)="tec"),'Půjčovna ALEA'!C$15,'Půjčovna ALEA'!C$13),0) -> 0 | M14: =IF((L14<>""),'Půjčovna ALEA'!C$18,0) -> 0 | P14: =IF((N14<>""),IF((LEFT(N14,1)="o"),'Půjčovna ALEA'!C$16,'Půjčovna ALEA'!C$17),0)+IF((O14<>""),IF((LEFT(O14,1)="o"),'Půjčovna ALEA'!C$16,'Půjčovna ALEA'!C$17),0) -> 0 | R14: =IF((Q14<>""),'Půjčovna ALEA'!C$30,0) -> 0 | T14: =IF((S14<>""),'Půjčovna ALEA'!C$28,0) -> 0 | V14: =IF((U14<>""),IF((LEFT(U14,1)="s"),'Půjčovna ALEA'!C$26,'Půjčovna ALEA'!C$27),0) -> 0 | X14: =IF((W14<>""),IF((LEFT(W14,1)="o"),'Půjčovna ALEA'!C$29,'Půjčovna ALEA'!C$25),0) -> 0 | Z14: =IF((Y14<>""),'Půjčovna ALEA'!C$23,0) -> 0 | AB14: =IF((AA14<>""),IF((LEFT(AA14,1)="l"),'Půjčovna ALEA'!C$19,'Půjčovna ALEA'!C$20),0) -> 0
A15: 12 | D15: =(IF(AG15,(F15+I15+K15+M15+P15+R15+T15+V15+X15+Z15+AB15)*(1-'Půjčovna ALEA'!$E$38),F15+I15+K15+M15+P15+R15+T15+V15+X15+Z15+AB15)+IF(ISNUMBER(VALUE(AE15)),AE15,0)+'formulář půjčovna'!$G$46*IF(ISNUMBER(VALUE(AC15)),AC15,0))*IF(AND(ISNUMBER(VALUE(AD15)),AD15>0),AD15,1) -> 0 | F15: =IF(E15<>"",IF(ISNUMBER(VALUE(E15)),'Půjčovna ALEA'!C$13+(E15*'Půjčovna ALEA'!C$33),('Půjčovna ALEA'!C$13+(10*'Půjčovna ALEA'!C$33))),0) -> 0 | I15: =IF((G15<>""),'Půjčovna ALEA'!C$21,0)+(IF((H15<>""),IF(ISNUMBER(VALUE(H15)),('Půjčovna ALEA'!C$22*H15),(('Půjčovna ALEA'!C$22)*6)),0)) -> 0 | K15: =IF((J15<>""),IF((LEFT(J15,3)="tec"),'Půjčovna ALEA'!C$15,'Půjčovna ALEA'!C$13),0) -> 0 | M15: =IF((L15<>""),'Půjčovna ALEA'!C$18,0) -> 0 | P15: =IF((N15<>""),IF((LEFT(N15,1)="o"),'Půjčovna ALEA'!C$16,'Půjčovna ALEA'!C$17),0)+IF((O15<>""),IF((LEFT(O15,1)="o"),'Půjčovna ALEA'!C$16,'Půjčovna ALEA'!C$17),0) -> 0 | R15: =IF((Q15<>""),'Půjčovna ALEA'!C$30,0) -> 0 | T15: =IF((S15<>""),'Půjčovna ALEA'!C$28,0) -> 0 | V15: =IF((U15<>""),IF((LEFT(U15,1)="s"),'Půjčovna ALEA'!C$26,'Půjčovna ALEA'!C$27),0) -> 0 | X15: =IF((W15<>""),IF((LEFT(W15,1)="o"),'Půjčovna ALEA'!C$29,'Půjčovna ALEA'!C$25),0) -> 0 | Z15: =IF((Y15<>""),'Půjčovna ALEA'!C$23,0) -> 0 | AB15: =IF((AA15<>""),IF((LEFT(AA15,1)="l"),'Půjčovna ALEA'!C$19,'Půjčovna ALEA'!C$20),0) -> 0
A16: Náhradní výstroj | D16: =(IF(AF16,(F16+I16+K16+M16+P16+R16+T16+V16+X16+Z16+AB16)*(1-'Půjčovna ALEA'!$E$38),F16+I16+K16+M16+P16+R16+T16+V16+X16+Z16+AB16)+IF(ISNUMBER(VALUE(AE16)),AE16,0)+'formulář půjčovna'!$G$46*IF(ISNUMBER(VALUE(AC16)),AC16,0))*IF(AND(ISNUMBER(VALUE(AD16)),AD16>0),AD16,1) -> 1018 | F16: =IF(E16<>"",IF(ISNUMBER(VALUE(E16)),'Půjčovna ALEA'!C$13+(E16*'Půjčovna ALEA'!C$33),('Půjčovna ALEA'!C$13+(10*'Půjčovna ALEA'!C$33))),0) -> 240 | I16: =IF((G16<>""),'Půjčovna ALEA'!C$21,0)+(IF((H16<>""),IF(ISNUMBER(VALUE(H16)),('Půjčovna ALEA'!C$22*H16),(('Půjčovna ALEA'!C$22)*6)),0)) -> 58 | K16: =IF((J16<>""),IF((LEFT(J16,3)="tec"),'Půjčovna ALEA'!C$15,'Půjčovna ALEA'!C$13),0) -> 120 | M16: =IF((L16<>""),'Půjčovna ALEA'!C$18,0) -> 210 | P16: =IF((N16<>""),IF((LEFT(N16,1)="o"),'Půjčovna ALEA'!C$16,'Půjčovna ALEA'!C$17),0)+IF((O16<>""),IF((LEFT(O16,1)="o"),'Půjčovna ALEA'!C$16,'Půjčovna ALEA'!C$17),0) -> 290 | R16: =IF((Q16<>""),'Půjčovna ALEA'!C$30,0) -> 0 | T16: =IF((S16<>""),'Půjčovna ALEA'!C$28,0) -> 50 | V16: =IF((U16<>""),IF((LEFT(U16,1)="s"),'Půjčovna ALEA'!C$26,'Půjčovna ALEA'!C$27),0) -> 50 | X16: =IF((W16<>""),IF((LEFT(W16,1)="o"),'Půjčovna ALEA'!C$29,'Půjčovna ALEA'!C$25),0) -> 0 | Z16: =IF((Y16<>""),'Půjčovna ALEA'!C$23,0) -> 0 | AB16: =IF((AA16<>""),IF((LEFT(AA16,1)="l"),'Půjčovna ALEA'!C$19,'Půjčovna ALEA'!C$20),0) -> 0 | AF16: FALSE
A17: Počty výstrojí na listu | E17: =IF(E4<>"",1,0)+IF(E5<>"",1,0)+IF(E6<>"",1,0)+IF(E7<>"",1,0)+IF(E8<>"",1,0)+IF(E9<>"",1,0)+IF(E10<>"",1,0)+IF(E11<>"",1,0)+IF(E12<>"",1,0)+IF(E13<>"",1,0)+IF(E14<>"",1,0)+IF(E15<>"",1,0)+IF(E16<>"",1,0) -> 1 | G17: =IF(G4<>"",1,0)+IF(G5<>"",1,0)+IF(G6<>"",1,0)+IF(G7<>"",1,0)+IF(G8<>"",1,0)+IF(G9<>"",1,0)+IF(G10<>"",1,0)+IF(G11<>"",1,0)+IF(G12<>"",1,0)+IF(G13<>"",1,0)+IF(G14<>"",1,0)+IF(G15<>"",1,0)+IF(G16<>"",1,0) -> 1 | H17: =IF(H4<>"",IF(H4=" ",1,IF(H4>0,H4,1)),0)+IF(H5<>"",IF(H5=" ",1,IF(H5>0,H5,1)),0)+IF(H6<>"",IF(H6=" ",1,IF(H6>0,H6,1)),0)+IF(H7<>"",IF(H7=" ",1,IF(H7>0,H7,1)),0)+IF(H8<>"",IF(H8=" ",1,IF(H8>0,H8,1)),0)+IF(H9<>"",IF(H9=" ",1,IF(H9>0,H9,1)),0)+IF(H10<>"",IF(H10=" ",1,IF(H10>0,H10,1)),0)+IF(H11<>"",IF(H11=" ",1,IF(H11>0,H11,1)),0)+IF(H12<>"",IF(H12=" ",1,IF(H12>0,H12,1)),0)+IF(H13<>"",IF(H13=" ",1,IF(H13>0,H13,1)),0)+IF(H14<>"",IF(H14=" ",1,IF(H14>0,H14,1)),0)+IF(H15<>"",IF(H15=" ",1,IF(H15>0,H15,1)),0)+IF(H16<>"",IF(H16=" ",1,IF(H16>0,H16,1)),0) -> 1 | J17: =IF(J4<>"",1,0)+IF(J5<>"",1,0)+IF(J6<>"",1,0)+IF(J7<>"",1,0)+IF(J8<>"",1,0)+IF(J9<>"",1,0)+IF(J10<>"",1,0)+IF(J11<>"",1,0)+IF(J12<>"",1,0)+IF(J13<>"",1,0)+IF(J14<>"",1,0)+IF(J15<>"",1,0)+IF(J16<>"",1,0) -> 1 | L17: =IF(L4<>"",1,0)+IF(L5<>"",1,0)+IF(L6<>"",1,0)+IF(L7<>"",1,0)+IF(L8<>"",1,0)+IF(L9<>"",1,0)+IF(L10<>"",1,0)+IF(L11<>"",1,0)+IF(L12<>"",1,0)+IF(L13<>"",1,0)+IF(L14<>"",1,0)+IF(L15<>"",1,0)+IF(L16<>"",1,0) -> 1 | N17: =IF(N4<>"",1,0)+IF(N5<>"",1,0)+IF(N6<>"",1,0)+IF(N7<>"",1,0)+IF(N8<>"",1,0)+IF(N9<>"",1,0)+IF(N10<>"",1,0)+IF(N11<>"",1,0)+IF(N12<>"",1,0)+IF(N13<>"",1,0)+IF(N14<>"",1,0)+IF(N15<>"",1,0)+IF(N16<>"",1,0) -> 0 | O17: =IF(O4<>"",1,0)+IF(O5<>"",1,0)+IF(O6<>"",1,0)+IF(O7<>"",1,0)+IF(O8<>"",1,0)+IF(O9<>"",1,0)+IF(O10<>"",1,0)+IF(O11<>"",1,0)+IF(O12<>"",1,0)+IF(O13<>"",1,0)+IF(O14<>"",1,0)+IF(O15<>"",1,0)+IF(O16<>"",1,0) -> 1 | Q17: =IF(Q4<>"",1,0)+IF(Q5<>"",1,0)+IF(Q6<>"",1,0)+IF(Q7<>"",1,0)+IF(Q8<>"",1,0)+IF(Q9<>"",1,0)+IF(Q10<>"",1,0)+IF(Q11<>"",1,0)+IF(Q12<>"",1,0)+IF(Q13<>"",1,0)+IF(Q14<>"",1,0)+IF(Q15<>"",1,0)+IF(Q16<>"",1,0) -> 0 | S17: =IF(S4<>"",1,0)+IF(S5<>"",1,0)+IF(S6<>"",1,0)+IF(S7<>"",1,0)+IF(S8<>"",1,0)+IF(S9<>"",1,0)+IF(S10<>"",1,0)+IF(S11<>"",1,0)+IF(S12<>"",1,0)+IF(S13<>"",1,0)+IF(S14<>"",1,0)+IF(S15<>"",1,0)+IF(S16<>"",1,0) -> 1 | U17: =IF(U4<>"",1,0)+IF(U5<>"",1,0)+IF(U6<>"",1,0)+IF(U7<>"",1,0)+IF(U8<>"",1,0)+IF(U9<>"",1,0)+IF(U10<>"",1,0)+IF(U11<>"",1,0)+IF(U12<>"",1,0)+IF(U13<>"",1,0)+IF(U14<>"",1,0)+IF(U15<>"",1,0)+IF(U16<>"",1,0) -> 1 | W17: =IF(W4<>"",1,0)+IF(W5<>"",1,0)+IF(W6<>"",1,0)+IF(W7<>"",1,0)+IF(W8<>"",1,0)+IF(W9<>"",1,0)+IF(W10<>"",1,0)+IF(W11<>"",1,0)+IF(W12<>"",1,0)+IF(W13<>"",1,0)+IF(W14<>"",1,0)+IF(W15<>"",1,0)+IF(W16<>"",1,0) -> 0 | Y17: =IF(Y4<>"",1,0)+IF(Y5<>"",1,0)+IF(Y6<>"",1,0)+IF(Y7<>"",1,0)+IF(Y8<>"",1,0)+IF(Y9<>"",1,0)+IF(Y10<>"",1,0)+IF(Y11<>"",1,0)+IF(Y12<>"",1,0)+IF(Y13<>"",1,0)+IF(Y14<>"",1,0)+IF(Y15<>"",1,0)+IF(Y16<>"",1,0) -> 0 | AA17: =IF(AA4<>"",1,0)+IF(AA5<>"",1,0)+IF(AA6<>"",1,0)+IF(AA7<>"",1,0)+IF(AA8<>"",1,0)+IF(AA9<>"",1,0)+IF(AA10<>"",1,0)+IF(AA11<>"",1,0)+IF(AA12<>"",1,0)+IF(AA13<>"",1,0)+IF(AA14<>"",1,0)+IF(AA15<>"",1,0)+IF(AA16<>"",1,0) -> 0 | AB17: =IF(B22<>"","OTOČ !!!","") ->  | AG17: FALSE
B19: Rozpis věcí na: | E19: =E1 -> Bazen Kralupy | Q19: =Q1 -> 2023-09-12 | W19: BAZEN | AA19: VOLNA VODA
B20: Nářadí O2 podložka… | E20: Láhev velikost | G20: Pásek | H20: Olovo počet ks | J20: BCD (vel./čís.) i - integr | L20: reg (číslo) | N20: Velikost a číslo | Q20: rukavice | S20: maska | U20: ploutve s - SPLIT | W20: botky o - old | Y20: počítač | AA20: světlo l - lumen | AC20: Dopr. KM | AD20: Počet dní | AE20: Cena baz | AF20: Ostatní
A21: Datum zápisu | B21: Jméno a příjmení | C21: Kontakt / důvod | D21: Kč | N21: oblek dlouhý | O21: oblek short
A22: =TODAY() -> 2023-09-14 | D22: =(IF(AG22,(F22+I22+K22+M22+P22+R22+T22+V22+X22+Z22+AB22)*(1-'Půjčovna ALEA'!$E$38),F22+I22+K22+M22+P22+R22+T22+V22+X22+Z22+AB22)+IF(ISNUMBER(VALUE(AE22)),AE22,0)+'formulář půjčovna'!$G$46*IF(ISNUMBER(VALUE(AC22)),AC22,0))*IF(AND(ISNUMBER(VALUE(AD22)),AD22>0),AD22,1) -> 0 | F22: =IF(E22<>"",IF(ISNUMBER(VALUE(E22)),'Půjčovna ALEA'!C$13+(E22*'Půjčovna ALEA'!C$33),('Půjčovna ALEA'!C$13+(10*'Půjčovna ALEA'!C$33))),0) -> 0 | I22: =IF((G22<>""),'Půjčovna ALEA'!C$21,0)+(IF((H22<>""),IF(ISNUMBER(VALUE(H22)),('Půjčovna ALEA'!C$22*H22),(('Půjčovna ALEA'!C$22)*6)),0)) -> 0 | K22: =IF((J22<>""),IF((LEFT(J22,3)="tec"),'Půjčovna ALEA'!C$15,'Půjčovna ALEA'!C$13),0) -> 0 | M22: =IF((L22<>""),'Půjčovna ALEA'!C$18,0) -> 0 | P22: =IF((N22<>""),IF((LEFT(N22,1)="o"),'Půjčovna ALEA'!C$16,'Půjčovna ALEA'!C$17),0)+IF((O22<>""),IF((LEFT(O22,1)="o"),'Půjčovna ALEA'!C$16,'Půjčovna ALEA'!C$17),0) -> 0 | R22: =IF((Q22<>""),'Půjčovna ALEA'!C$30,0) -> 0 | T22: =IF((S22<>""),'Půjčovna ALEA'!C$28,0) -> 0 | V22: =IF((U22<>""),IF((LEFT(U22,1)="s"),'Půjčovna ALEA'!C$26,'Půjčovna ALEA'!C$27),0) -> 0 | X22: =IF((W22<>""),IF((LEFT(W22,1)="o"),'Půjčovna ALEA'!C$29,'Půjčovna ALEA'!C$25),0) -> 0 | Z22: =IF((Y22<>""),'Půjčovna ALEA'!C$23,0) -> 0 | AB22: =IF((AA22<>""),IF((LEFT(AA22,1)="l"),'Půjčovna ALEA'!C$19,'Půjčovna ALEA'!C$20),0) -> 0
D23: =(IF(AG23,(F23+I23+K23+M23+P23+R23+T23+V23+X23+Z23+AB23)*(1-'Půjčovna ALEA'!$E$38),F23+I23+K23+M23+P23+R23+T23+V23+X23+Z23+AB23)+IF(ISNUMBER(VALUE(AE23)),AE23,0)+'formulář půjčovna'!$G$46*IF(ISNUMBER(VALUE(AC23)),AC23,0))*IF(AND(ISNUMBER(VALUE(AD23)),AD23>0),AD23,1) -> 0 | F23: =IF(E23<>"",IF(ISNUMBER(VALUE(E23)),'Půjčovna ALEA'!C$13+(E23*'Půjčovna ALEA'!C$33),('Půjčovna ALEA'!C$13+(10*'Půjčovna ALEA'!C$33))),0) -> 0 | I23: =IF((G23<>""),'Půjčovna ALEA'!C$21,0)+(IF((H23<>""),IF(ISNUMBER(VALUE(H23)),('Půjčovna ALEA'!C$22*H23),(('Půjčovna ALEA'!C$22)*6)),0)) -> 0 | K23: =IF((J23<>""),IF((LEFT(J23,3)="tec"),'Půjčovna ALEA'!C$15,'Půjčovna ALEA'!C$13),0) -> 0 | M23: =IF((L23<>""),'Půjčovna ALEA'!C$18,0) -> 0 | P23: =IF((N23<>""),IF((LEFT(N23,1)="o"),'Půjčovna ALEA'!C$16,'Půjčovna ALEA'!C$17),0)+IF((O23<>""),IF((LEFT(O23,1)="o"),'Půjčovna ALEA'!C$16,'Půjčovna ALEA'!C$17),0) -> 0 | R23: =IF((Q23<>""),'Půjčovna ALEA'!C$30,0) -> 0 | T23: =IF((S23<>""),'Půjčovna ALEA'!C$28,0) -> 0 | V23: =IF((U23<>""),IF((LEFT(U23,1)="s"),'Půjčovna ALEA'!C$26,'Půjčovna ALEA'!C$27),0) -> 0 | X23: =IF((W23<>""),IF((LEFT(W23,1)="o"),'Půjčovna ALEA'!C$29,'Půjčovna ALEA'!C$25),0) -> 0 | Z23: =IF((Y23<>""),'Půjčovna ALEA'!C$23,0) -> 0 | AB23: =IF((AA23<>""),IF((LEFT(AA23,1)="l"),'Půjčovna ALEA'!C$19,'Půjčovna ALEA'!C$20),0) -> 0
A24: 15 | D24: =(IF(AG24,(F24+I24+K24+M24+P24+R24+T24+V24+X24+Z24+AB24)*(1-'Půjčovna ALEA'!$E$38),F24+I24+K24+M24+P24+R24+T24+V24+X24+Z24+AB24)+IF(ISNUMBER(VALUE(AE24)),AE24,0)+'formulář půjčovna'!$G$46*IF(ISNUMBER(VALUE(AC24)),AC24,0))*IF(AND(ISNUMBER(VALUE(AD24)),AD24>0),AD24,1) -> 0 | F24: =IF(E24<>"",IF(ISNUMBER(VALUE(E24)),'Půjčovna ALEA'!C$13+(E24*'Půjčovna ALEA'!C$33),('Půjčovna ALEA'!C$13+(10*'Půjčovna ALEA'!C$33))),0) -> 0 | I24: =IF((G24<>""),'Půjčovna ALEA'!C$21,0)+(IF((H24<>""),IF(ISNUMBER(VALUE(H24)),('Půjčovna ALEA'!C$22*H24),(('Půjčovna ALEA'!C$22)*6)),0)) -> 0 | K24: =IF((J24<>""),IF((LEFT(J24,3)="tec"),'Půjčovna ALEA'!C$15,'Půjčovna ALEA'!C$13),0) -> 0 | M24: =IF((L24<>""),'Půjčovna ALEA'!C$18,0) -> 0 | P24: =IF((N24<>""),IF((LEFT(N24,1)="o"),'Půjčovna ALEA'!C$16,'Půjčovna ALEA'!C$17),0)+IF((O24<>""),IF((LEFT(O24,1)="o"),'Půjčovna ALEA'!C$16,'Půjčovna ALEA'!C$17),0) -> 0 | R24: =IF((Q24<>""),'Půjčovna ALEA'!C$30,0) -> 0 | T24: =IF((S24<>""),'Půjčovna ALEA'!C$28,0) -> 0 | V24: =IF((U24<>""),IF((LEFT(U24,1)="s"),'Půjčovna ALEA'!C$26,'Půjčovna ALEA'!C$27),0) -> 0 | X24: =IF((W24<>""),IF((LEFT(W24,1)="o"),'Půjčovna ALEA'!C$29,'Půjčovna ALEA'!C$25),0) -> 0 | Z24: =IF((Y24<>""),'Půjčovna ALEA'!C$23,0) -> 0 | AB24: =IF((AA24<>""),IF((LEFT(AA24,1)="l"),'Půjčovna ALEA'!C$19,'Půjčovna ALEA'!C$20),0) -> 0
A25: 16 | D25: =(IF(AG25,(F25+I25+K25+M25+P25+R25+T25+V25+X25+Z25+AB25)*(1-'Půjčovna ALEA'!$E$38),F25+I25+K25+M25+P25+R25+T25+V25+X25+Z25+AB25)+IF(ISNUMBER(VALUE(AE25)),AE25,0)+'formulář půjčovna'!$G$46*IF(ISNUMBER(VALUE(AC25)),AC25,0))*IF(AND(ISNUMBER(VALUE(AD25)),AD25>0),AD25,1) -> 0 | F25: =IF(E25<>"",IF(ISNUMBER(VALUE(E25)),'Půjčovna ALEA'!C$13+(E25*'Půjčovna ALEA'!C$33),('Půjčovna ALEA'!C$13+(10*'Půjčovna ALEA'!C$33))),0) -> 0 | I25: =IF((G25<>""),'Půjčovna ALEA'!C$21,0)+(IF((H25<>""),IF(ISNUMBER(VALUE(H25)),('Půjčovna ALEA'!C$22*H25),(('Půjčovna ALEA'!C$22)*6)),0)) -> 0 | K25: =IF((J25<>""),IF((LEFT(J25,3)="tec"),'Půjčovna ALEA'!C$15,'Půjčovna ALEA'!C$13),0) -> 0 | M25: =IF((L25<>""),'Půjčovna ALEA'!C$18,0) -> 0 | P25: =IF((N25<>""),IF((LEFT(N25,1)="o"),'Půjčovna ALEA'!C$16,'Půjčovna ALEA'!C$17),0)+IF((O25<>""),IF((LEFT(O25,1)="o"),'Půjčovna ALEA'!C$16,'Půjčovna ALEA'!C$17),0) -> 0 | R25: =IF((Q25<>""),'Půjčovna ALEA'!C$30,0) -> 0 | T25: =IF((S25<>""),'Půjčovna ALEA'!C$28,0) -> 0 | V25: =IF((U25<>""),IF((LEFT(U25,1)="s"),'Půjčovna ALEA'!C$26,'Půjčovna ALEA'!C$27),0) -> 0 | X25: =IF((W25<>""),IF((LEFT(W25,1)="o"),'Půjčovna ALEA'!C$29,'Půjčovna ALEA'!C$25),0) -> 0 | Z25: =IF((Y25<>""),'Půjčovna ALEA'!C$23,0) -> 0 | AB25: =IF((AA25<>""),IF((LEFT(AA25,1)="l"),'Půjčovna ALEA'!C$19,'Půjčovna ALEA'!C$20),0) -> 0
A26: 17 | D26: =(IF(AG26,(F26+I26+K26+M26+P26+R26+T26+V26+X26+Z26+AB26)*(1-'Půjčovna ALEA'!$E$38),F26+I26+K26+M26+P26+R26+T26+V26+X26+Z26+AB26)+IF(ISNUMBER(VALUE(AE26)),AE26,0)+'formulář půjčovna'!$G$46*IF(ISNUMBER(VALUE(AC26)),AC26,0))*IF(AND(ISNUMBER(VALUE(AD26)),AD26>0),AD26,1) -> 0 | F26: =IF(E26<>"",IF(ISNUMBER(VALUE(E26)),'Půjčovna ALEA'!C$13+(E26*'Půjčovna ALEA'!C$33),('Půjčovna ALEA'!C$13+(10*'Půjčovna ALEA'!C$33))),0) -> 0 | I26: =IF((G26<>""),'Půjčovna ALEA'!C$21,0)+(IF((H26<>""),IF(ISNUMBER(VALUE(H26)),('Půjčovna ALEA'!C$22*H26),(('Půjčovna ALEA'!C$22)*6)),0)) -> 0 | K26: =IF((J26<>""),IF((LEFT(J26,3)="tec"),'Půjčovna ALEA'!C$15,'Půjčovna ALEA'!C$13),0) -> 0 | M26: =IF((L26<>""),'Půjčovna ALEA'!C$18,0) -> 0 | P26: =IF((N26<>""),IF((LEFT(N26,1)="o"),'Půjčovna ALEA'!C$16,'Půjčovna ALEA'!C$17),0)+IF((O26<>""),IF((LEFT(O26,1)="o"),'Půjčovna ALEA'!C$16,'Půjčovna ALEA'!C$17),0) -> 0 | R26: =IF((Q26<>""),'Půjčovna ALEA'!C$30,0) -> 0 | T26: =IF((S26<>""),'Půjčovna ALEA'!C$28,0) -> 0 | V26: =IF((U26<>""),IF((LEFT(U26,1)="s"),'Půjčovna ALEA'!C$26,'Půjčovna ALEA'!C$27),0) -> 0 | X26: =IF((W26<>""),IF((LEFT(W26,1)="o"),'Půjčovna ALEA'!C$29,'Půjčovna ALEA'!C$25),0) -> 0 | Z26: =IF((Y26<>""),'Půjčovna ALEA'!C$23,0) -> 0 | AB26: =IF((AA26<>""),IF((LEFT(AA26,1)="l"),'Půjčovna ALEA'!C$19,'Půjčovna ALEA'!C$20),0) -> 0
A27: 18 | D27: =(IF(AG27,(F27+I27+K27+M27+P27+R27+T27+V27+X27+Z27+AB27)*(1-'Půjčovna ALEA'!$E$38),F27+I27+K27+M27+P27+R27+T27+V27+X27+Z27+AB27)+IF(ISNUMBER(VALUE(AE27)),AE27,0)+'formulář půjčovna'!$G$46*IF(ISNUMBER(VALUE(AC27)),AC27,0))*IF(AND(ISNUMBER(VALUE(AD27)),AD27>0),AD27,1) -> 0 | F27: =IF(E27<>"",IF(ISNUMBER(VALUE(E27)),'Půjčovna ALEA'!C$13+(E27*'Půjčovna ALEA'!C$33),('Půjčovna ALEA'!C$13+(10*'Půjčovna ALEA'!C$33))),0) -> 0 | I27: =IF((G27<>""),'Půjčovna ALEA'!C$21,0)+(IF((H27<>""),IF(ISNUMBER(VALUE(H27)),('Půjčovna ALEA'!C$22*H27),(('Půjčovna ALEA'!C$22)*6)),0)) -> 0 | K27: =IF((J27<>""),IF((LEFT(J27,3)="tec"),'Půjčovna ALEA'!C$15,'Půjčovna ALEA'!C$13),0) -> 0 | M27: =IF((L27<>""),'Půjčovna ALEA'!C$18,0) -> 0 | P27: =IF((N27<>""),IF((LEFT(N27,1)="o"),'Půjčovna ALEA'!C$16,'Půjčovna ALEA'!C$17),0)+IF((O27<>""),IF((LEFT(O27,1)="o"),'Půjčovna ALEA'!C$16,'Půjčovna ALEA'!C$17),0) -> 0 | R27: =IF((Q27<>""),'Půjčovna ALEA'!C$30,0) -> 0 | T27: =IF((S27<>""),'Půjčovna ALEA'!C$28,0) -> 0 | V27: =IF((U27<>""),IF((LEFT(U27,1)="s"),'Půjčovna ALEA'!C$26,'Půjčovna ALEA'!C$27),0) -> 0 | X27: =IF((W27<>""),IF((LEFT(W27,1)="o"),'Půjčovna ALEA'!C$29,'Půjčovna ALEA'!C$25),0) -> 0 | Z27: =IF((Y27<>""),'Půjčovna ALEA'!C$23,0) -> 0 | AB27: =IF((AA27<>""),IF((LEFT(AA27,1)="l"),'Půjčovna ALEA'!C$19,'Půjčovna ALEA'!C$20),0) -> 0
A28: 19 | D28: =(IF(AG28,(F28+I28+K28+M28+P28+R28+T28+V28+X28+Z28+AB28)*(1-'Půjčovna ALEA'!$E$38),F28+I28+K28+M28+P28+R28+T28+V28+X28+Z28+AB28)+IF(ISNUMBER(VALUE(AE28)),AE28,0)+'formulář půjčovna'!$G$46*IF(ISNUMBER(VALUE(AC28)),AC28,0))*IF(AND(ISNUMBER(VALUE(AD28)),AD28>0),AD28,1) -> 0 | F28: =IF(E28<>"",IF(ISNUMBER(VALUE(E28)),'Půjčovna ALEA'!C$13+(E28*'Půjčovna ALEA'!C$33),('Půjčovna ALEA'!C$13+(10*'Půjčovna ALEA'!C$33))),0) -> 0 | I28: =IF((G28<>""),'Půjčovna ALEA'!C$21,0)+(IF((H28<>""),IF(ISNUMBER(VALUE(H28)),('Půjčovna ALEA'!C$22*H28),(('Půjčovna ALEA'!C$22)*6)),0)) -> 0 | K28: =IF((J28<>""),IF((LEFT(J28,3)="tec"),'Půjčovna ALEA'!C$15,'Půjčovna ALEA'!C$13),0) -> 0 | M28: =IF((L28<>""),'Půjčovna ALEA'!C$18,0) -> 0 | P28: =IF((N28<>""),IF((LEFT(N28,1)="o"),'Půjčovna ALEA'!C$16,'Půjčovna ALEA'!C$17),0)+IF((O28<>""),IF((LEFT(O28,1)="o"),'Půjčovna ALEA'!C$16,'Půjčovna ALEA'!C$17),0) -> 0 | R28: =IF((Q28<>""),'Půjčovna ALEA'!C$30,0) -> 0 | T28: =IF((S28<>""),'Půjčovna ALEA'!C$28,0) -> 0 | V28: =IF((U28<>""),IF((LEFT(U28,1)="s"),'Půjčovna ALEA'!C$26,'Půjčovna ALEA'!C$27),0) -> 0 | X28: =IF((W28<>""),IF((LEFT(W28,1)="o"),'Půjčovna ALEA'!C$29,'Půjčovna ALEA'!C$25),0) -> 0 | Z28: =IF((Y28<>""),'Půjčovna ALEA'!C$23,0) -> 0 | AB28: =IF((AA28<>""),IF((LEFT(AA28,1)="l"),'Půjčovna ALEA'!C$19,'Půjčovna ALEA'!C$20),0) -> 0
A29: 20 | D29: =(IF(AG29,(F29+I29+K29+M29+P29+R29+T29+V29+X29+Z29+AB29)*(1-'Půjčovna ALEA'!$E$38),F29+I29+K29+M29+P29+R29+T29+V29+X29+Z29+AB29)+IF(ISNUMBER(VALUE(AE29)),AE29,0)+'formulář půjčovna'!$G$46*IF(ISNUMBER(VALUE(AC29)),AC29,0))*IF(AND(ISNUMBER(VALUE(AD29)),AD29>0),AD29,1) -> 0 | F29: =IF(E29<>"",IF(ISNUMBER(VALUE(E29)),'Půjčovna ALEA'!C$13+(E29*'Půjčovna ALEA'!C$33),('Půjčovna ALEA'!C$13+(10*'Půjčovna ALEA'!C$33))),0) -> 0 | I29: =IF((G29<>""),'Půjčovna ALEA'!C$21,0)+(IF((H29<>""),IF(ISNUMBER(VALUE(H29)),('Půjčovna ALEA'!C$22*H29),(('Půjčovna ALEA'!C$22)*6)),0)) -> 0 | K29: =IF((J29<>""),IF((LEFT(J29,3)="tec"),'Půjčovna ALEA'!C$15,'Půjčovna ALEA'!C$13),0) -> 0 | M29: =IF((L29<>""),'Půjčovna ALEA'!C$18,0) -> 0 | P29: =IF((N29<>""),IF((LEFT(N29,1)="o"),'Půjčovna ALEA'!C$16,'Půjčovna ALEA'!C$17),0)+IF((O29<>""),IF((LEFT(O29,1)="o"),'Půjčovna ALEA'!C$16,'Půjčovna ALEA'!C$17),0) -> 0 | R29: =IF((Q29<>""),'Půjčovna ALEA'!C$30,0) -> 0 | T29: =IF((S29<>""),'Půjčovna ALEA'!C$28,0) -> 0 | V29: =IF((U29<>""),IF((LEFT(U29,1)="s"),'Půjčovna ALEA'!C$26,'Půjčovna ALEA'!C$27),0) -> 0 | X29: =IF((W29<>""),IF((LEFT(W29,1)="o"),'Půjčovna ALEA'!C$29,'Půjčovna ALEA'!C$25),0) -> 0 | Z29: =IF((Y29<>""),'Půjčovna ALEA'!C$23,0) -> 0 | AB29: =IF((AA29<>""),IF((LEFT(AA29,1)="l"),'Půjčovna ALEA'!C$19,'Půjčovna ALEA'!C$20),0) -> 0
A30: 21 | D30: =(IF(AG30,(F30+I30+K30+M30+P30+R30+T30+V30+X30+Z30+AB30)*(1-'Půjčovna ALEA'!$E$38),F30+I30+K30+M30+P30+R30+T30+V30+X30+Z30+AB30)+IF(ISNUMBER(VALUE(AE30)),AE30,0)+'formulář půjčovna'!$G$46*IF(ISNUMBER(VALUE(AC30)),AC30,0))*IF(AND(ISNUMBER(VALUE(AD30)),AD30>0),AD30,1) -> 0 | F30: =IF(E30<>"",IF(ISNUMBER(VALUE(E30)),'Půjčovna ALEA'!C$13+(E30*'Půjčovna ALEA'!C$33),('Půjčovna ALEA'!C$13+(10*'Půjčovna ALEA'!C$33))),0) -> 0 | I30: =IF((G30<>""),'Půjčovna ALEA'!C$21,0)+(IF((H30<>""),IF(ISNUMBER(VALUE(H30)),('Půjčovna ALEA'!C$22*H30),(('Půjčovna ALEA'!C$22)*6)),0)) -> 0 | K30: =IF((J30<>""),IF((LEFT(J30,3)="tec"),'Půjčovna ALEA'!C$15,'Půjčovna ALEA'!C$13),0) -> 0 | M30: =IF((L30<>""),'Půjčovna ALEA'!C$18,0) -> 0 | P30: =IF((N30<>""),IF((LEFT(N30,1)="o"),'Půjčovna ALEA'!C$16,'Půjčovna ALEA'!C$17),0)+IF((O30<>""),IF((LEFT(O30,1)="o"),'Půjčovna ALEA'!C$16,'Půjčovna ALEA'!C$17),0) -> 0 | R30: =IF((Q30<>""),'Půjčovna ALEA'!C$30,0) -> 0 | T30: =IF((S30<>""),'Půjčovna ALEA'!C$28,0) -> 0 | V30: =IF((U30<>""),IF((LEFT(U30,1)="s"),'Půjčovna ALEA'!C$26,'Půjčovna ALEA'!C$27),0) -> 0 | X30: =IF((W30<>""),IF((LEFT(W30,1)="o"),'Půjčovna ALEA'!C$29,'Půjčovna ALEA'!C$25),0) -> 0 | Z30: =IF((Y30<>""),'Půjčovna ALEA'!C$23,0) -> 0 | AB30: =IF((AA30<>""),IF((LEFT(AA30,1)="l"),'Půjčovna ALEA'!C$19,'Půjčovna ALEA'!C$20),0) -> 0
A31: 22 | D31: =(IF(AG31,(F31+I31+K31+M31+P31+R31+T31+V31+X31+Z31+AB31)*(1-'Půjčovna ALEA'!$E$38),F31+I31+K31+M31+P31+R31+T31+V31+X31+Z31+AB31)+IF(ISNUMBER(VALUE(AE31)),AE31,0)+'formulář půjčovna'!$G$46*IF(ISNUMBER(VALUE(AC31)),AC31,0))*IF(AND(ISNUMBER(VALUE(AD31)),AD31>0),AD31,1) -> 0 | F31: =IF(E31<>"",IF(ISNUMBER(VALUE(E31)),'Půjčovna ALEA'!C$13+(E31*'Půjčovna ALEA'!C$33),('Půjčovna ALEA'!C$13+(10*'Půjčovna ALEA'!C$33))),0) -> 0 | I31: =IF((G31<>""),'Půjčovna ALEA'!C$21,0)+(IF((H31<>""),IF(ISNUMBER(VALUE(H31)),('Půjčovna ALEA'!C$22*H31),(('Půjčovna ALEA'!C$22)*6)),0)) -> 0 | K31: =IF((J31<>""),IF((LEFT(J31,3)="tec"),'Půjčovna ALEA'!C$15,'Půjčovna ALEA'!C$13),0) -> 0 | M31: =IF((L31<>""),'Půjčovna ALEA'!C$18,0) -> 0 | P31: =IF((N31<>""),IF((LEFT(N31,1)="o"),'Půjčovna ALEA'!C$16,'Půjčovna ALEA'!C$17),0)+IF((O31<>""),IF((LEFT(O31,1)="o"),'Půjčovna ALEA'!C$16,'Půjčovna ALEA'!C$17),0) -> 0 | R31: =IF((Q31<>""),'Půjčovna ALEA'!C$30,0) -> 0 | T31: =IF((S31<>""),'Půjčovna ALEA'!C$28,0) -> 0 | V31: =IF((U31<>""),IF((LEFT(U31,1)="s"),'Půjčovna ALEA'!C$26,'Půjčovna ALEA'!C$27),0) -> 0 | X31: =IF((W31<>""),IF((LEFT(W31,1)="o"),'Půjčovna ALEA'!C$29,'Půjčovna ALEA'!C$25),0) -> 0 | Z31: =IF((Y31<>""),'Půjčovna ALEA'!C$23,0) -> 0 | AB31: =IF((AA31<>""),IF((LEFT(AA31,1)="l"),'Půjčovna ALEA'!C$19,'Půjčovna ALEA'!C$20),0) -> 0
A32: 23 | D32: =(IF(AG32,(F32+I32+K32+M32+P32+R32+T32+V32+X32+Z32+AB32)*(1-'Půjčovna ALEA'!$E$38),F32+I32+K32+M32+P32+R32+T32+V32+X32+Z32+AB32)+IF(ISNUMBER(VALUE(AE32)),AE32,0)+'formulář půjčovna'!$G$46*IF(ISNUMBER(VALUE(AC32)),AC32,0))*IF(AND(ISNUMBER(VALUE(AD32)),AD32>0),AD32,1) -> 0 | F32: =IF(E32<>"",IF(ISNUMBER(VALUE(E32)),'Půjčovna ALEA'!C$13+(E32*'Půjčovna ALEA'!C$33),('Půjčovna ALEA'!C$13+(10*'Půjčovna ALEA'!C$33))),0) -> 0 | I32: =IF((G32<>""),'Půjčovna ALEA'!C$21,0)+(IF((H32<>""),IF(ISNUMBER(VALUE(H32)),('Půjčovna ALEA'!C$22*H32),(('Půjčovna ALEA'!C$22)*6)),0)) -> 0 | K32: =IF((J32<>""),IF((LEFT(J32,3)="tec"),'Půjčovna ALEA'!C$15,'Půjčovna ALEA'!C$13),0) -> 0 | M32: =IF((L32<>""),'Půjčovna ALEA'!C$18,0) -> 0 | P32: =IF((N32<>""),IF((LEFT(N32,1)="o"),'Půjčovna ALEA'!C$16,'Půjčovna ALEA'!C$17),0)+IF((O32<>""),IF((LEFT(O32,1)="o"),'Půjčovna ALEA'!C$16,'Půjčovna ALEA'!C$17),0) -> 0 | R32: =IF((Q32<>""),'Půjčovna ALEA'!C$30,0) -> 0 | T32: =IF((S32<>""),'Půjčovna ALEA'!C$28,0) -> 0 | V32: =IF((U32<>""),IF((LEFT(U32,1)="s"),'Půjčovna ALEA'!C$26,'Půjčovna ALEA'!C$27),0) -> 0 | X32: =IF((W32<>""),IF((LEFT(W32,1)="o"),'Půjčovna ALEA'!C$29,'Půjčovna ALEA'!C$25),0) -> 0 | Z32: =IF((Y32<>""),'Půjčovna ALEA'!C$23,0) -> 0 | AB32: =IF((AA32<>""),IF((LEFT(AA32,1)="l"),'Půjčovna ALEA'!C$19,'Půjčovna ALEA'!C$20),0) -> 0
A33: 24 | D33: =(IF(AG33,(F33+I33+K33+M33+P33+R33+T33+V33+X33+Z33+AB33)*(1-'Půjčovna ALEA'!$E$38),F33+I33+K33+M33+P33+R33+T33+V33+X33+Z33+AB33)+IF(ISNUMBER(VALUE(AE33)),AE33,0)+'formulář půjčovna'!$G$46*IF(ISNUMBER(VALUE(AC33)),AC33,0))*IF(AND(ISNUMBER(VALUE(AD33)),AD33>0),AD33,1) -> 0 | F33: =IF(E33<>"",IF(ISNUMBER(VALUE(E33)),'Půjčovna ALEA'!C$13+(E33*'Půjčovna ALEA'!C$33),('Půjčovna ALEA'!C$13+(10*'Půjčovna ALEA'!C$33))),0) -> 0 | I33: =IF((G33<>""),'Půjčovna ALEA'!C$21,0)+(IF((H33<>""),IF(ISNUMBER(VALUE(H33)),('Půjčovna ALEA'!C$22*H33),(('Půjčovna ALEA'!C$22)*6)),0)) -> 0 | K33: =IF((J33<>""),IF((LEFT(J33,3)="tec"),'Půjčovna ALEA'!C$15,'Půjčovna ALEA'!C$13),0) -> 0 | M33: =IF((L33<>""),'Půjčovna ALEA'!C$18,0) -> 0 | P33: =IF((N33<>""),IF((LEFT(N33,1)="o"),'Půjčovna ALEA'!C$16,'Půjčovna ALEA'!C$17),0)+IF((O33<>""),IF((LEFT(O33,1)="o"),'Půjčovna ALEA'!C$16,'Půjčovna ALEA'!C$17),0) -> 0 | R33: =IF((Q33<>""),'Půjčovna ALEA'!C$30,0) -> 0 | T33: =IF((S33<>""),'Půjčovna ALEA'!C$28,0) -> 0 | V33: =IF((U33<>""),IF((LEFT(U33,1)="s"),'Půjčovna ALEA'!C$26,'Půjčovna ALEA'!C$27),0) -> 0 | X33: =IF((W33<>""),IF((LEFT(W33,1)="o"),'Půjčovna ALEA'!C$29,'Půjčovna ALEA'!C$25),0) -> 0 | Z33: =IF((Y33<>""),'Půjčovna ALEA'!C$23,0) -> 0 | AB33: =IF((AA33<>""),IF((LEFT(AA33,1)="l"),'Půjčovna ALEA'!C$19,'Půjčovna ALEA'!C$20),0) -> 0
A34: 25 | D34: =(IF(AG34,(F34+I34+K34+M34+P34+R34+T34+V34+X34+Z34+AB34)*(1-'Půjčovna ALEA'!$E$38),F34+I34+K34+M34+P34+R34+T34+V34+X34+Z34+AB34)+IF(ISNUMBER(VALUE(AE34)),AE34,0)+'formulář půjčovna'!$G$46*IF(ISNUMBER(VALUE(AC34)),AC34,0))*IF(AND(ISNUMBER(VALUE(AD34)),AD34>0),AD34,1) -> 0 | F34: =IF(E34<>"",IF(ISNUMBER(VALUE(E34)),'Půjčovna ALEA'!C$13+(E34*'Půjčovna ALEA'!C$33),('Půjčovna ALEA'!C$13+(10*'Půjčovna ALEA'!C$33))),0) -> 0 | I34: =IF((G34<>""),'Půjčovna ALEA'!C$21,0)+(IF((H34<>""),IF(ISNUMBER(VALUE(H34)),('Půjčovna ALEA'!C$22*H34),(('Půjčovna ALEA'!C$22)*6)),0)) -> 0 | K34: =IF((J34<>""),IF((LEFT(J34,3)="tec"),'Půjčovna ALEA'!C$15,'Půjčovna ALEA'!C$13),0) -> 0 | M34: =IF((L34<>""),'Půjčovna ALEA'!C$18,0) -> 0 | P34: =IF((N34<>""),IF((LEFT(N34,1)="o"),'Půjčovna ALEA'!C$16,'Půjčovna ALEA'!C$17),0)+IF((O34<>""),IF((LEFT(O34,1)="o"),'Půjčovna ALEA'!C$16,'Půjčovna ALEA'!C$17),0) -> 0 | R34: =IF((Q34<>""),'Půjčovna ALEA'!C$30,0) -> 0 | T34: =IF((S34<>""),'Půjčovna ALEA'!C$28,0) -> 0 | V34: =IF((U34<>""),IF((LEFT(U34,1)="s"),'Půjčovna ALEA'!C$26,'Půjčovna ALEA'!C$27),0) -> 0 | X34: =IF((W34<>""),IF((LEFT(W34,1)="o"),'Půjčovna ALEA'!C$29,'Půjčovna ALEA'!C$25),0) -> 0 | Z34: =IF((Y34<>""),'Půjčovna ALEA'!C$23,0) -> 0 | AB34: =IF((AA34<>""),IF((LEFT(AA34,1)="l"),'Půjčovna ALEA'!C$19,'Půjčovna ALEA'!C$20),0) -> 0
A35: Počty výstrojí | E35: =IF(E22<>"",1,0)+IF(E23<>"",1,0)+IF(E24<>"",1,0)+IF(E25<>"",1,0)+IF(E26<>"",1,0)+IF(E27<>"",1,0)+IF(E28<>"",1,0)+IF(E29<>"",1,0)+IF(E30<>"",1,0)+IF(E31<>"",1,0)+IF(E32<>"",1,0)+IF(E33<>"",1,0)+IF(E34<>"",1,0) -> 0 | G35: =IF(G22<>"",1,0)+IF(G23<>"",1,0)+IF(G24<>"",1,0)+IF(G25<>"",1,0)+IF(G26<>"",1,0)+IF(G27<>"",1,0)+IF(G28<>"",1,0)+IF(G29<>"",1,0)+IF(G30<>"",1,0)+IF(G31<>"",1,0)+IF(G32<>"",1,0)+IF(G33<>"",1,0)+IF(G34<>"",1,0) -> 0 | H35: =IF(H22<>"",IF(H22=" ",1,IF(H22>0,H22,1)),0)+IF(H23<>"",IF(H23=" ",1,IF(H23>0,H23,1)),0)+IF(H24<>"",IF(H24=" ",1,IF(H24>0,H24,1)),0)+IF(H25<>"",IF(H25=" ",1,IF(H25>0,H25,1)),0)+IF(H26<>"",IF(H26=" ",1,IF(H26>0,H26,1)),0)+IF(H27<>"",IF(H27=" ",1,IF(H27>0,H27,1)),0)+IF(H28<>"",IF(H28=" ",1,IF(H28>0,H28,1)),0)+IF(H29<>"",IF(H29=" ",1,IF(H29>0,H29,1)),0)+IF(H30<>"",IF(H30=" ",1,IF(H30>0,H30,1)),0)+IF(H31<>"",IF(H31=" ",1,IF(H31>0,H31,1)),0)+IF(H32<>"",IF(H32=" ",1,IF(H32>0,H32,1)),0)+IF(H33<>"",IF(H33=" ",1,IF(H33>0,H33,1)),0)+IF(H34<>"",IF(H34=" ",1,IF(H34>0,H34,1)),0) -> 0 | J35: =IF(J22<>"",1,0)+IF(J23<>"",1,0)+IF(J24<>"",1,0)+IF(J25<>"",1,0)+IF(J26<>"",1,0)+IF(J27<>"",1,0)+IF(J28<>"",1,0)+IF(J29<>"",1,0)+IF(J30<>"",1,0)+IF(J31<>"",1,0)+IF(J32<>"",1,0)+IF(J33<>"",1,0)+IF(J34<>"",1,0) -> 0 | L35: =IF(L22<>"",1,0)+IF(L23<>"",1,0)+IF(L24<>"",1,0)+IF(L25<>"",1,0)+IF(L26<>"",1,0)+IF(L27<>"",1,0)+IF(L28<>"",1,0)+IF(L29<>"",1,0)+IF(L30<>"",1,0)+IF(L31<>"",1,0)+IF(L32<>"",1,0)+IF(L33<>"",1,0)+IF(L34<>"",1,0) -> 0 | N35: =IF(N22<>"",1,0)+IF(N23<>"",1,0)+IF(N24<>"",1,0)+IF(N25<>"",1,0)+IF(N26<>"",1,0)+IF(N27<>"",1,0)+IF(N28<>"",1,0)+IF(N29<>"",1,0)+IF(N30<>"",1,0)+IF(N31<>"",1,0)+IF(N32<>"",1,0)+IF(N33<>"",1,0)+IF(N34<>"",1,0) -> 0 | O35: =IF(O22<>"",1,0)+IF(O23<>"",1,0)+IF(O24<>"",1,0)+IF(O25<>"",1,0)+IF(O26<>"",1,0)+IF(O27<>"",1,0)+IF(O28<>"",1,0)+IF(O29<>"",1,0)+IF(O30<>"",1,0)+IF(O31<>"",1,0)+IF(O32<>"",1,0)+IF(O33<>"",1,0)+IF(O34<>"",1,0) -> 0 | Q35: =IF(Q22<>"",1,0)+IF(Q23<>"",1,0)+IF(Q24<>"",1,0)+IF(Q25<>"",1,0)+IF(Q26<>"",1,0)+IF(Q27<>"",1,0)+IF(Q28<>"",1,0)+IF(Q29<>"",1,0)+IF(Q30<>"",1,0)+IF(Q31<>"",1,0)+IF(Q32<>"",1,0)+IF(Q33<>"",1,0)+IF(Q34<>"",1,0) -> 0 | S35: =IF(S22<>"",1,0)+IF(S23<>"",1,0)+IF(S24<>"",1,0)+IF(S25<>"",1,0)+IF(S26<>"",1,0)+IF(S27<>"",1,0)+IF(S28<>"",1,0)+IF(S29<>"",1,0)+IF(S30<>"",1,0)+IF(S31<>"",1,0)+IF(S32<>"",1,0)+IF(S33<>"",1,0)+IF(S34<>"",1,0) -> 0 | U35: =IF(U22<>"",1,0)+IF(U23<>"",1,0)+IF(U24<>"",1,0)+IF(U25<>"",1,0)+IF(U26<>"",1,0)+IF(U27<>"",1,0)+IF(U28<>"",1,0)+IF(U29<>"",1,0)+IF(U30<>"",1,0)+IF(U31<>"",1,0)+IF(U32<>"",1,0)+IF(U33<>"",1,0)+IF(U34<>"",1,0) -> 0 | W35: =IF(W22<>"",1,0)+IF(W23<>"",1,0)+IF(W24<>"",1,0)+IF(W25<>"",1,0)+IF(W26<>"",1,0)+IF(W27<>"",1,0)+IF(W28<>"",1,0)+IF(W29<>"",1,0)+IF(W30<>"",1,0)+IF(W31<>"",1,0)+IF(W32<>"",1,0)+IF(W33<>"",1,0)+IF(W34<>"",1,0) -> 0 | Y35: =IF(Y22<>"",1,0)+IF(Y23<>"",1,0)+IF(Y24<>"",1,0)+IF(Y25<>"",1,0)+IF(Y26<>"",1,0)+IF(Y27<>"",1,0)+IF(Y28<>"",1,0)+IF(Y29<>"",1,0)+IF(Y30<>"",1,0)+IF(Y31<>"",1,0)+IF(Y32<>"",1,0)+IF(Y33<>"",1,0)+IF(Y34<>"",1,0) -> 0 | AA35: =IF(AA22<>"",1,0)+IF(AA23<>"",1,0)+IF(AA24<>"",1,0)+IF(AA25<>"",1,0)+IF(AA26<>"",1,0)+IF(AA27<>"",1,0)+IF(AA28<>"",1,0)+IF(AA29<>"",1,0)+IF(AA30<>"",1,0)+IF(AA31<>"",1,0)+IF(AA32<>"",1,0)+IF(AA33<>"",1,0)+IF(AA34<>"",1,0) -> 0
